{"text_format":"1","workbook":"xlsx","n_sheets":38,"sheets":["TitlePage","Disclaimer","General Notes","Chemical Notes","Revisions","Contents","A01","A02a","A02b","A02c","A02d","A03","B01","B02","B03a","B03b","B04Rt","B04a","B04b","B04c","B04d","B05a","B05b","C01a","C01b","C01c","D04a","D04b","D04Soil","D07","D09a","D09b","E01","E02","E03","E04","References","PlntRunoV5"],"not_rendered":{"charts":0,"images":18,"macros":1,"external_links":0,"defined_names":260,"comments":0,"pivot_tables":0},"unopened":[],"bounds":{"document_bytes":16777216,"sheet_cells":100000,"rows_first":2000,"rows_last":500,"rows_between":2000,"halvings":0,"cell_chars":16384,"cell_head_chars":4096},"cells_cut":0,"cells_raw":0,"read":"whole","date_system":"1900"}

{"sheet":"TitlePage","index":0,"n_rows":51,"n_cols":6,"rows_kept":51,"cut":false,"hidden":false,"merged":[[0,1,4,7],[5,2,7,6],[50,0,50,8]]}
["Title page"]
[]
[]
[]
[]
[null,"S","Hexachlorobenzene in Picloram\nCUSTOM WORKBOOK"]
[]
[]
[]
[]
[]
[]
[]
[]
[]
[]
[null,null,null,null,"WorksheetMaker Version ","6.00.07"]
[]
[]
[]
[]
[]
[]
[]
[]
[]
[]
[]
[]
[]
[]
[]
[]
[]
[]
[]
[]
[]
[]
[]
[]
[]
[]
[]
[]
[]
[]
[]
[]
[]
["2011-06-28"]

{"sheet":"Disclaimer","index":1,"n_rows":1,"n_cols":1,"rows_kept":1,"cut":false,"hidden":false,"merged":[]}
["DISCLAIMER"]

{"sheet":"General Notes","index":2,"n_rows":59,"n_cols":3,"rows_kept":59,"cut":false,"hidden":false,"merged":[[0,0,0,2]]}
["General Notes"]
[null,"Prepared by:","Patrick R Durkin"]
[null,"Program Version:","6.00.07"]
[null,"Database Used:","FS WsMkr V06-00-01.mdb"]
[null,"Template Workbook:","FS WsMkr V06-00-01.mdb"]
[null,"Base Workbook:","FS WSMkr Blank V06-00-01.xlsm"]
[]
["Color Codes in WorksheetMaker"]
[]
[]
[]
[]
["Color Codes used in Workbook for Front Matter, Data and Calculation Worksheets"]
[null,"Green shading ","This is a default value or a user specified a value.  You can change these values as you see fit but you should have a reason for doing so."]
[null,"Yellow shading ","This is a source for a link in other parts of the workbook.  If you have good reason to change the value, you should note the change (with your reason) in the “Revisions” page."]
[null,"Blue shading ","This cell is linked to another cell in the workbook.  Do not change this value.  If you change any of these values, the workbook may not update correctly."]
[null,"Blue shading blue border ","This cell is linked to a Program parameter in Worksheet A01.  Do not change this value.  If you want the value to change, go to Worksheet A01 and change the value in that worksheet."]
[null,"Purple Shading","Indicates (for information only) that the typical of order of Lower and Upper values is intentionally reversed.  This is only used in the second (label) column."]
[null,"Italics, no shading","The value in this cell is generated by a formula (the number that you see is the result of an equation).  This cell is linked only to other cells in the worksheet.  Do not change this value."]
[]
[]
[]
[]
[]
["Color Codes used in Workbook for Risk Characterization Worksheets"]
[null,"HQ ≥ 2","For hazard quotient greater than 2, the number is in bold font with a red background and rounded to the nearest integer."]
[null,"HQ > 1 but < 2","For hazard quotient greater than 1 but less than two, the number is in bold font with a white background and rounded to one significant place after the decimal."]
[null,"HQ ≥ 0.1 but <1","For hazard quotient greater than 0.1 but less than one, the number is in regular font with a white background and rounded to one significant place after the decimal."]
[null,"HQ < 0.1","For hazard quotient less than 0.1, the number is in regular font with a white background.   The number is expressed in scientific notation and rounded to one significant place -- e.g., 2E-02 rather than 0.02."]
[]
[]
[]
[]
[]
[]
[]
[]
[]
[]
[]
[]
[]
[]
[]
[]
[]
[]
[]
[]
[]
[]
[]
[]
[]
[null,"Prepared by:","Patrick R Durkin"]
[null,"Program Version:","6.00.07"]
[null,"Database Used:","FS WsMkr V06-00-01.mdb"]
[null,"Template Workbook:","FS WsMkr V06-00-01.mdb"]
[null,"Base Workbook:","FS WSMkr Blank V06-00-01.xlsm"]

{"sheet":"Chemical Notes","index":3,"n_rows":6,"n_cols":4,"rows_kept":6,"cut":false,"hidden":false,"merged":[[0,0,0,2],[1,0,1,2],[1,3,1,5],[2,0,2,2],[2,3,2,4]]}
["Chemical specific notes"]
["Risk Assessment:",null,null,"SERA TR-052-27-03a"]
["Report Date:",null,null,"2003-09-21"]
[]
[]
["The area below is an embedded MS Word Document.  Add chemical-specific notes as appropriate."]

{"sheet":"Revisions","index":4,"n_rows":8,"n_cols":1,"rows_kept":8,"cut":false,"hidden":false,"merged":[]}
["Revision Histroy"]
[]
[]
[]
[]
[]
[]
["The area below is an embedded MS Word Document.  Add revision notes as appropriate."]

{"sheet":"Contents","index":5,"n_rows":39,"n_cols":3,"rows_kept":39,"cut":false,"hidden":false,"merged":[]}
[null,"Table of Contents","Toc"]
["Work-sheet No.","Worksheet Title"]
["TitlePage","Title page"]
["Disclaimer","DISCLAIMER"]
["General Notes","General Notes"]
["Chemical Notes","Chemical specific notes"]
["Revisions","Revision Histroy"]
["Contents"]
["A01","Program Data: Application rates, application volumns, and concentrations in field solutions"]
["A02a","General reference values and exposure factors used in worksheets."]
["A02b","General reference values and exposure factors used in worksheets."]
["A02c","General reference values and exposure factors used in worksheets."]
["A02d","General reference values and exposure factors used in worksheets."]
["A03","Consumption values used in worksheets"]
["B01","Chemical and Physical Properties for  Picloram"]
["B02","Toxicity values for  Picloram"]
["B03a","Calculation of Zero-Order Dermal Permeability Rate (Kp) in cm/hour"]
["B03b","Calculation of First-Order Dermal Absorption Rate"]
["B04Rt","Estimates of Water Contamination Rates -- i.e., the concentration in ambient water per pound applied per acre"]
["B04a","Expected Concentrations in Surface Water"]
["B04b","Pond: Concentration of pesticide (liquid formulation) in pond water after an accidental spill"]
["B04c","Concentration in pond water after direct spray or after drift at distances downwind in feet from the application site"]
["B04d","Concentration in stream water after direct spray or after drift at distances downwind in feet from the application site"]
["B05a","Concentration of Pesticide in Contaminated Fruit "]
["B05b","Concentration of Pesticide in Contaminated Broadleaf Vegetation "]
["C01a","Exposure estimates for Backpack Worker based on the amount of material handled per day"]
["C01b","Exposure estimates for Ground Boom Worker based on the amount of material handled per day"]
["C01c","Exposure estimates for Aerial Spray Worker based on the amount of material handled per day"]
["D04a","Consumption of Fruit by a Adult Female, Chronic exposure."]
["D04b","Consumption of Vegetation by a Adult Female, Chronic exposure."]
["D07","Consumption of contaminated water by Adult Male, Longer-term Conentrations "]
["D09a","Consumption of Contaminated Fish (Longer-term), Adult Male, chronic exposure"]
["D09b","Consumption of Contaminated Fish (Longer-term), Subsistence Populations, chronic exposure"]
["E01","Worksheet E01: Summary of Worker Exposure Assessments"]
["E02","Worksheet E01: Summary of Worker Hazard Quotients (Toxicity)"]
["E03","Worksheet E03: Summary of Exposure Assessments for the General Public"]
["E04","Worksheet E03: Summary of Hazard Quotients (Toxicity) for the General Public"]
["References","References cited in workbook"]
["PlntRunoV5","Summary of Exposure Assessment and Risk Characterization for Terrestrial Plants from Runoff"]

{"sheet":"A01","index":6,"n_rows":79,"n_cols":5,"rows_kept":79,"cut":false,"hidden":false,"merged":[[55,0,58,0],[0,0,0,4],[3,0,6,0],[7,0,10,0],[12,0,15,0],[16,0,18,0],[31,0,34,0],[35,0,38,0],[39,0,42,0],[43,0,46,0],[47,0,50,0],[51,0,54,0],[59,0,62,0],[63,0,66,0],[67,0,70,0],[71,0,74,0],[75,0,78,0]]}
["Program Data: Application rates, application volumns, and concentrations in field solutions"]
["Parameter/Assumption","Code / Range","Equation/ Value","Units","Reference/ Equation"]
["Application Rate","ApRt",3.0000000000000001E-6,"lb/acre","Program Input"]
["Application Volume","ApVol"]
[null,"Central ",30,"gal/acre","Program Input"]
[null,"Upper ",100,null,"Program Input"]
[null,"Lower ",5,null,"Program Input"]
["Concentration in field solution (lb/gal)","Concppg","ApRt (lb/acre) / ApVol (gal/acre)",null,"Note 1"]
[null,"Central ",{"$f":"IF(C5>0, C$3/C5, \"N/A\")","v":1.0000000000000001E-7},"lb/gal","Eq"]
[null,"Lower ",{"$f":"IF(C6>0, C$3/C6, \"N/A\")","v":3.0000000000000004E-8},null,"Eq"]
[null,"Upper ",{"$f":"IF(C7>0, C$3/C7, \"N/A\")","v":5.9999999999999997E-7},null,"Eq"]
["Conversion Factor for lbs/gal to mg/mL","CnvF",119.8,"mg/mL per lb/gal"]
["Concentration in field solution (mg/mL)","FldConc","Concppg * CnvF",null,"Note 2"]
[null,"Central ",{"$f":"IF(C5>0, DigitRound( C9*C$12, C$17), \"NA\")","v":1.2E-5},"mg/mL","Eq"]
[null,"Lower ",{"$f":"IF(C6>0, DigitRound( C10*C$12, C$17), \"NA\")","v":3.5999999999999998E-6},null,"Eq"]
[null,"Upper ",{"$f":"IF(C7>0, DigitRound( C11*C$12, C$17), \"NA\")","v":7.2000000000000002E-5},null,"Eq"]
["Number of significant figures  used for FldConc.","NSig",2]
[]
[]
["Number of Applications","nApps",1,"Unitless","Program Input"]
["Application Interval","ApIntv",1,"Days","Program Input"]
["Standard Values/Options for Scenarios"]
["Years of Exposure","ExpYr",6,"Years","Risk assessment."]
["Lifespan","LS",70,"Years","Risk assessment."]
["Surface area of pond for spill","PondSA_M",1000,"Sq. Meters","Risk assessment."]
["Pond depth","PondDepthM",1,"Meters","Risk assessment."]
["Stream flow rate for drift scenario","StreamFlowLD",710000,"Liters/day","Risk assessment."]
["Stream length for drift scenario","StreamLengthFt",1038,"Feet","Risk assessment."]
["Stream width for drift scenario","StreamWidthFt",6,"Feet","Risk assessment."]
["Duration for longer-term exposures","SubChDays",365,"Days","Risk assessment."]
["Duration for swimming scenarios","SwimMin",60,"Minutes","Risk assessment."]
["Protection factor for workers based on PPE.","WrkProtectFact"]
[null,"Central",0,null,"Risk assessment."]
[null,"Lower",0]
[null,"Upper",0]
["Toxic Equivalency Factor for formulation","TEF"]
[null,"Central",1,null,"Risk assessment."]
[null,"Lower",1]
[null,"Upper",1]
["Used in food commody worksheets","DriftToFood"]
[null,"Central",1,null,"Risk assessment."]
[null,"Lower",1]
[null,"Upper",1]
["Amount spilled into ponds","PondSpillVolGal"]
[null,"Central",100,"Gal","Risk assessment."]
[null,"Lower",20]
[null,"Upper",200]
["Dislodgeable residue, as a proportion of the application rate.","DislogRes"]
[null,"Central",0.1,null,"Risk assessment."]
[null,"Lower",0.1]
[null,"Upper",0.1]
["Residue rates for short grass","VegRRSGT"]
[null,"Central",85,"ppm per lb/ac","Risk assessment."]
[null,"Lower",30]
[null,"Upper",240]
["Residue rates for long grass","VegRRTGT"]
[null,"Central",36,"ppm per lb/ac","Risk assessment."]
[null,"Lower",12]
[null,"Upper",110]
["Residue rates for broadleaf/forage plants and small insects","VegRRBLT"]
[null,"Central",45,"ppm per lb/ac","Risk assessment."]
[null,"Lower",15]
[null,"Upper",135]
["Residue rates for fruit","VegRRFRT"]
[null,"Central",7,"ppm per lb/ac","Risk assessment."]
[null,"Lower",3.2]
[null,"Upper",15]
["Worker Exposure Rate","WrkExpRate"]
[null,"Central",3.0000000000000001E-3,"Mg/kg bw per lb","Risk assessment."]
[null,"Lower",2.9999999999999997E-4]
[null,"Upper",0.01]
["Number of acres that the worker will treat per hour.","WrkAcPerHr"]
[null,"Central",0.625,"Acres/hr","Risk assessment."]
[null,"Lower",0.25]
[null,"Upper",1]
["Number of hours of worker exposure per day.","WrkHsPerDy"]
[null,"Central",7,"Hrs/day","Risk assessment."]
[null,"Lower",6]
[null,"Upper",8]

{"sheet":"A02a","index":7,"n_rows":41,"n_cols":6,"rows_kept":41,"cut":false,"hidden":false,"merged":[[0,0,0,4]]}
["General reference values and exposure factors used in worksheets."]
[]
["Receptor","Factor","Value","Units"," Reference","Reference Note"]
["Adult Female","Body weight",64,"kg","U.S. EPA/ORD 1985","page 5, Table 2-2"]
["Adult Female","Surface Area, Feet and lower Legs",2915,"cm2","U.S. EPA/ORD 1992","p. 8-11, Table 8-3, total for feet and lower legs"]
["Adult Female","Surface Area, Wearing shorts and T-shirt",5300,"cm2","U.S. EPA/ORD 1992","p. 8-11, Table 8-3, total for arms, hands, lower legs, and feet."]
["Adult Female","Surface Area, Whole body",16900,"cm2","U.S. EPA/ORD 1997","p. 6-13, Table 6-3, whole body, 50th percentile"]
["Adult Male","Body weight",70,"kg","ICRP 1975","p. 13."]
["Subsistence Populations","Body weight",70,"kg","ICRP 1975","p. 13"]
["Worker, Aerial Spray","Absorbed dose rate, central estimate",3.0000000000000001E-5,"(mg/kg bw)/(lbs handled per day)","SERA 2007","Acres treated per hour"]
["Worker, Aerial Spray","Absorbed dose rate, lower range",9.9999999999999995E-7,"(mg/kg bw)/(lbs handled per day)","SERA 2007","Acres treated per hour"]
["Worker, Aerial Spray","Absorbed dose rate, upper range",1E-4,"(mg/kg bw)/(lbs handled per day)","SERA 2007","Acres treated per hour"]
["Worker, Aerial Spray","Hours of application per day, central estimate",7,"Hours per day","USDA 1989a","N/A"]
["Worker, Aerial Spray","Hours of application per day, lower range",6,"Hours per day","USDA 1989a","N/A"]
["Worker, Aerial Spray","Hours of application per day, upper range",8,"Hours per day","USDA 1989a","N/A"]
["Worker, Aerial Spray","Acres treated per hour, central estimate",70,"acres/hour","USDA 1989a","Acres treated per hour"]
["Worker, Aerial Spray","Acres treated per hour, lower range",40,"acres/hour","USDA 1989a","Acres treated per hour"]
["Worker, Aerial Spray","Acres treated per hour, upper range",100,"acres/hour","USDA 1989a","Acres treated per hour"]
["Worker, Backpack","Absorbed dose rate, central estimate",3.0000000000000001E-3,"(mg/kg bw)/(lbs handled per day)","SERA 2007","Acres treated per hour"]
["Worker, Backpack","Absorbed dose rate, lower range",2.9999999999999997E-4,"(mg/kg bw)/(lbs handled per day)","SERA 2007","Acres treated per hour"]
["Worker, Backpack","Absorbed dose rate, upper range",0.01,"(mg/kg bw)/(lbs handled per day)","SERA 2007","Acres treated per hour"]
["Worker, Backpack","Hours of application per day, central estimate",7,"Hours per day","USDA 1989a","N/A"]
["Worker, Backpack","Hours of application per day, lower range",6,"Hours per day","USDA 1989a","N/A"]
["Worker, Backpack","Hours of application per day, upper range",8,"Hours per day","USDA 1989a","N/A"]
["Worker, Backpack","Acres treated per hour, central estimate",0.625,"acres/hour","USDA 1989a","Acres treated per hour"]
["Worker, Backpack","Acres treated per hour, lower range",0.25,"acres/hour","USDA 1989a","Acres treated per hour"]
["Worker, Backpack","Acres treated per hour, upper range",1,"acres/hour","USDA 1989a","Acres treated per hour"]
["Child","Body weight",13.3,"kg","U.S. EPA/ORD 1996","p. 7-1, Table 7-2"]
["Child","Surface Area, Whole body",6030,"cm2","U.S. EPA/ORD 1996","p. 6-15, Table 6-6, 50th percentile."]
["Worker, Ground Spray","Absorbed dose rate, central estimate",2.0000000000000001E-4,"(mg/kg bw)/(lbs handled per day)","SERA 2007","Acres treated per hour"]
["Worker, Ground Spray","Absorbed dose rate, lower range",1.0000000000000001E-5,"(mg/kg bw)/(lbs handled per day)","SERA 2007","Acres treated per hour"]
["Worker, Ground Spray","Absorbed dose rate, upper range",8.9999999999999998E-4,"(mg/kg bw)/(lbs handled per day)","SERA 2007","Acres treated per hour"]
["Worker, Ground Spray","Hours of application per day, central estimate",7,"Hours per day","USDA 1989a","N/A"]
["Worker, Ground Spray","Hours of application per day, lower range",6,"Hours per day","USDA 1989a","N/A"]
["Worker, Ground Spray","Hours of application per day, upper range",8,"Hours per day","USDA 1989a","N/A"]
["Worker, Ground Spray","Acres treated per hour, central estimate",16,"acres/hour","USDA 1989a","Acres treated per hour"]
["Worker, Ground Spray","Acres treated per hour, lower range",11,"acres/hour","USDA 1989a","Acres treated per hour"]
["Worker, Ground Spray","Acres treated per hour, upper range",21,"acres/hour","USDA 1989a","Acres treated per hour"]
["Worker","Body weight",70,"kg","ICRP 1975","p. 13"]
["Worker","Surface Area, Hands",840,"cm2","U.S. EPA/ORD 1992"," p. 8-11"]
["Worker","Surface Area, Lower legs",2070,"cm2","U.S. EPA/ORD 1992","p. 8-11"]

{"sheet":"A02b","index":8,"n_rows":80,"n_cols":6,"rows_kept":80,"cut":false,"hidden":false,"merged":[[0,0,0,4]]}
["General reference values and exposure factors used in worksheets."]
[]
["Receptor","Factor","Value","Units"," Reference","Reference Note"]
["Amphibian","Kilocalories, alpha parameter for allometric equation",5.3999999999999999E-2,"BW(g),Kcal (kcal/day)","U.S. EPA/ORD 1993","p. 3-7, equation 3-14"]
["Amphibian","Kilocalories, beta parameter for allometric equation",0.79900000000000004,"BW(g),Kcal (kcal/day)","U.S. EPA/ORD 1993","p. 3-7, equation 3-14"]
["Amphibian, bull frog","Food consumption, alpha parameter for allometric equation",1.0900000000000001,"BW(g),FC(g)","SERA 2010","Figure 15"]
["Amphibian, bull frog","Food consumption, beta parameter for allometric equation",0.17230000000000001,"BW(g),FC(g)","SERA 2010","Figure 15"]
["Bird, NOS","Food consumption, alpha parameter for allometric equation",0.64800000000000002,"BW(g),FC(g)","U.S. EPA/ORD 1993","Eq. 3-3, p. 3-4, all birds"]
["Bird, NOS","Food consumption, beta parameter for allometric equation",0.65100000000000002,"BW(g),FC(g)","U.S. EPA/ORD 1993","Eq. 3-3, p. 3-4, all birds"]
["Bird, carnivorous","Body weight",0.64,"kg","Dunning 1993","p. 97. Female Spotted Owl (Strix occidentalis).  Range of 548 to 760 g."]
["Bird, carnivorous","Kilocalories, alpha parameter for allometric equation",1.1459999999999999,"BW(g),KCal(kcal/day)","U.S. EPA/ORD 1993","Eq. 3-37, nonpasserines"]
["Bird, carnivorous","Kilocalories, beta parameter for allometric equation",0.749,"BW(g),KCal(kcal/day)","U.S. EPA/ORD 1993","Eq. 3-37, nonpasserines"]
["Bird, carnivorous","Water consumption, alpha parameter for allometric equation",5.8999999999999997E-2,"BW(kg), WC(L)","U.S. EPA/ORD 1993","Eq. 3-15, p. 3-8"]
["Bird, carnivorous","Water consumption, beta parameter for allometric equation",0.67,"BW(kg), WC(L)","U.S. EPA/ORD 1993","Eq. 3-15, p. 3-8"]
["Bird, large","Body weight",4,"kg","Default","Canada goose"]
["Bird, large","Kilocalories, alpha parameter for allometric equation",1.1459999999999999,"BW(g),KCal(kcal/day)","U.S. EPA/ORD 1993","Eq. 3-37, non-passerines"]
["Bird, large","Kilocalories, beta parameter for allometric equation",0.749,"BW(g),KCal(kcal/day)","U.S. EPA/ORD 1993","Eq. 3-37, non-passerines"]
["Bird, large","Water consumption, alpha parameter for allometric equation",5.8999999999999997E-2,"BW(kg), WC(L)","U.S. EPA/ORD 1993","Eq. 3-15, p. 3-8"]
["Bird, large","Water consumption, beta parameter for allometric equation",0.67,"BW(kg), WC(L)","U.S. EPA/ORD 1993","Eq. 3-15, p. 3-8"]
["Bird, non-Passerine","Food consumption, alpha parameter for allometric equation",0.30099999999999999,"BW(g),FC(g)","U.S. EPA/ORD 1993","Eq. 3-5, p. 3-5, non-passerines"]
["Bird, non-Passerine","Food consumption, beta parameter for allometric equation",0.751,"BW(g),FC(g)","U.S. EPA/ORD 1993","Eq. 3-5, p. 3-5, non-passerines"]
["Bird, Passerine","Food consumption, alpha parameter for allometric equation",0.39800000000000002,"BW(g),FC(g)","U.S. EPA/ORD 1993","Eq. 3-4, p. 3-4, passerines"]
["Bird, Passerine","Food consumption, beta parameter for allometric equation",0.85,"BW(g),FC(g)","U.S. EPA/ORD 1993","Eq. 3-4, p. 3-4, passerines"]
["Bird, piscivorous","Body weight",2.4,"kg","Sibley 2000","p. 60. Great Blue Heron"]
["Bird, piscivorous","Food consumption, alpha parameter for allometric equation",0.495,"BW(g), FC(g)","U.S. EPA/ORD 1993","Eq. 3-6, p. 3-5, seabird"]
["Bird, piscivorous","Food consumption, beta parameter for allometric equation",0.70399999999999996,"BW(g), FC(g)","U.S. EPA/ORD 1993","Eq. 3-6, p. 3-5, seabird"]
["Bird, piscivorous","Kilocalories, alpha parameter for allometric equation",1.9159999999999999,"BW(g),KCal(kcal/day)","U.S. EPA/ORD 1993","Eq. 3-38, p. 3-23, seabird"]
["Bird, piscivorous","Kilocalories, beta parameter for allometric equation",0.70399999999999996,"BW(g),KCal(kcal/day)","U.S. EPA/ORD 1993","Eq. 3-38, p. 3-23, seabird"]
["Bird, piscivorous","Water consumption, alpha parameter for allometric equation",5.8999999999999997E-2,"BW(kg), WC(L)","U.S. EPA/ORD 1993","Eq. 3-15, p. 3-8"]
["Bird, piscivorous","Water consumption, beta parameter for allometric equation",0.67,"BW(kg), WC(L)","U.S. EPA/ORD 1993","Eq. 3-15, p. 3-8"]
["Bird, small","Body weight",0.01,"kg","Default","N/A"]
["Bird, small","Kilocalories, alpha parameter for allometric equation",3.12,"BW(g),KCal(kcal/day)","U.S. EPA/ORD 1993","Equation 3-36, passerines"]
["Bird, small","Kilocalories, beta parameter for allometric equation",0.60499999999999998,"BW(g),KCal(kcal/day)","U.S. EPA/ORD 1993","Equation 3-36, passerines"]
["Bird, small","Water consumption, alpha parameter for allometric equation",5.8999999999999997E-2,"BW(kg), WC(L)","U.S. EPA/ORD 1993","Eq. 3-15, p. 3-8"]
["Bird, small","Water consumption, beta parameter for allometric equation",0.67,"BW(kg), WC(L)","U.S. EPA/ORD 1993","Eq. 3-15, p. 3-8"]
["Honeybee","Body weight",1.16E-4,"kg","Winston 1987","p. 54. Arithmetic average of range: 81 to 151 mg/bee."]
["Honeybee","Surface Area, Whole body",1.42,"cm2","Humphery and Dykes 2008","Based on a bee with a body length of 1.44 cm."]
["Mammal, Nos","Food consumption, alpha parameter for allometric equation",0.23499999999999999,"BW(g),FC(g)","U.S. EPA/ORD 1993","Eq. 3-7 ,p. 3-6, all mammals"]
["Mammal, Nos","Food consumption, beta parameter for allometric equation",0.82199999999999995,"BW(g),FC(g)","U.S. EPA/ORD 1993","Eq. 3-7 ,p. 3-6, all mammals"]
["Mammal, 400 g","Body weight",0.4,"kg","Default","N/A"]
["Mammal, 400 g","Food consumption, alpha parameter for allometric equation",0.621,"BW(g),FC(g)","U.S. EPA/ORD 1993","Eq. 3-8, p. 3-6, equation for rodents"]
["Mammal, 400 g","Food consumption, beta parameter for allometric equation",0.56399999999999995,"BW(g),FC(g)","U.S. EPA/ORD 1993","Eq. 3-8, p. 3-6, equation for rodents"]
["Mammal, 400 g","Kilocalories, alpha parameter for allometric equation",2.5139999999999998,"BW(g),KCal(kcal/day)","U.S. EPA/ORD 1993","Equation 3-48, rodent"]
["Mammal, 400 g","Kilocalories, beta parameter for allometric equation",0.50700000000000001,"BW(g),KCal(kcal/day)","U.S. EPA/ORD 1993","Equation 3-48, rodent"]
["Mammal, 400 g","Water consumption, alpha parameter for allometric equation",9.9000000000000005E-2,"BW(kg),WC(L)","U.S. EPA/ORD 1993","Eq. 3-17, p. 3-10, all mammals"]
["Mammal, 400 g","Water consumption, beta parameter for allometric equation",0.9,"BW(kg),WC(L)","U.S. EPA/ORD 1993","Eq. 3-17, p. 3-10, all mammals"]
["Mammal, carnivorous","Body weight",5,"kg","U.S. EPA/ORD 1993","p. 2-221.  Central value for red fox with a range of 3 to 7 kg."]
["Mammal, carnivorous","Kilocalories, alpha parameter for allometric equation",0.61670000000000003,"BW(g),KCal(kcal/day)","U.S. EPA/ORD 1993","Equation 3-47, non-herbivore"]
["Mammal, carnivorous","Kilocalories, beta parameter for allometric equation",0.86199999999999999,"BW(g),KCal(kcal/day)","U.S. EPA/ORD 1993","Equation 3-47, non-herbivore"]
["Mammal, carnivorous","Water consumption, alpha parameter for allometric equation",9.9000000000000005E-2,"BW(kg),WC(L)","U.S. EPA/ORD 1993","Eq. 3-17, p. 3-10, all mammals"]
["Mammal, carnivorous","Water consumption, beta parameter for allometric equation",0.9,"BW(kg), WC(L)","U.S. EPA/ORD 1993","Eq. 3-17, p. 3-10, all mammals"]
["Mammal, large carnivorous","Body weight",70,"kg","Reid 2006"," pp. 451-453.  Black bear or small grizzly."]
["Mammal, large carnivorous","Kilocalories, alpha parameter for allometric equation",0.61670000000000003,"BW(g),KCal(kcal/day)","U.S. EPA/ORD 1993","Equation 3-47, non-herbivore"]
["Mammal, large carnivorous","Kilocalories, beta parameter for allometric equation",0.86199999999999999,"BW(g),KCal(kcal/day)","U.S. EPA/ORD 1993","Equation 3-47, non-herbivore"]
["Mammal, large carnivorous","Water consumption, alpha parameter for allometric equation",9.9000000000000005E-2,"BW(kg),WC(L)","U.S. EPA/ORD 1993","Eq. 3-17, p. 3-10, all mammals"]
["Mammal, large carnivorous","Water consumption, beta parameter for allometric equation",0.9,"BW(kg), WC(L)","U.S. EPA/ORD 1993","Eq. 3-17, p. 3-10, all mammals"]
["Mammal, herbivorous","Food consumption, alpha parameter for allometric equation",0.57699999999999996,"BW(g),FC(g)","U.S. EPA/ORD 1993","Eq. 3-9, p. 3-6, equation for herbivores"]
["Mammal, herbivorous","Food consumption, beta parameter for allometric equation",0.72699999999999998,"BW(g),FC(g)","U.S. EPA/ORD 1993","Eq. 3-9, p. 3-6, equation for herbivores"]
["Mammal, herbivorous","Kilocalories, alpha parameter for allometric equation",1.518,"BW(g),KCal(kcal/day)","U.S. EPA/ORD 1993","Equation 3-46, herbivores"]
["Mammal, herbivorous","Kilocalories, beta parameter for allometric equation",0.73,"BW(g),KCal(kcal/day)","U.S. EPA/ORD 1993","Equation 3-46, herbivores"]
["Mammal, large","Body weight",70,"kg","Default","N/A"]
["Mammal, large","Kilocalories, alpha parameter for allometric equation",1.518,"BW(g),KCal(kcal/day)","U.S. EPA/ORD 1993","p. 3-6, Eq. 3-10, herbivores"]
["Mammal, large","Kilocalories, beta parameter for allometric equation",0.73,"BW(g),KCal(kcal/day)","U.S. EPA/ORD 1993","p. 3-6, Eq. 3-10, herbivores"]
["Mammal, large","Water consumption, alpha parameter for allometric equation",9.9000000000000005E-2,"BW(kg),WC(L)","U.S. EPA/ORD 1993","Eq. 3-17, p. 3-10, all mammals"]
["Mammal, large","Water consumption, beta parameter for allometric equation",0.9,"BW(kg), WC(L)","U.S. EPA/ORD 1993","Eq. 3-17, p. 3-10, all mammals"]
["Mammal, rabbit","Body weight",1.3,"kg","Default","N/A"]
["Mammal, rabbit","Surface Area, alpha parameter for allometric equation",0.11,"BW(kg),SA(m2)","U.S. EPA/ORD 1993","p. 3-14, Eq. 3-22, for all mammals"]
["Mammal, rabbit","Surface Area, beta parameter for allometric equation",0.65,"BW(kg),SA(m2)","U.S. EPA/ORD 1993","p. 3-14, Eq. 3-22, for all mammals"]
["Mammal, rodent","Food consumption, alpha parameter for allometric equation",0.621,"BW(g),FC(g)","U.S. EPA/ORD 1993","Eq. 3-8, p. 3-6, equation for rodents"]
["Mammal, rodent","Food consumption, beta parameter for allometric equation",0.58399999999999996,"BW(g),FC(g)","U.S. EPA/ORD 1993","Eq. 3-8,p. 3-6, equation for rodents"]
["Mammal, small","Body weight",0.02,"kg","Default","N/A"]
["Mammal, small","Caloric content (wet weight)",1.7,"kcal/g  (wet weight)","U.S. EPA/ORD 1993","Table 4-1, p. 4-13. Value for small mammals. Wet weight."]
["Mammal, small","Food consumption, alpha parameter for allometric equation",0.621,"BW(g),FC(g)","U.S. EPA/ORD 1993","Eq. 3-8, p. 3-6, equation for rodents"]
["Mammal, small","Food consumption, beta parameter for allometric equation",0.56399999999999995,"BW(g),FC(g)","U.S. EPA/ORD 1993","Eq. 3-8, p. 3-6, equation for rodents"]
["Mammal, small","Kilocalories, alpha parameter for allometric equation",2.5139999999999998,"BW(g),KCal(kcal/day)","U.S. EPA/ORD 1993","Equation 3-48, rodent"]
["Mammal, small","Kilocalories, beta parameter for allometric equation",0.50700000000000001,"BW(g),KCal(kcal/day)","U.S. EPA/ORD 1993","Equation 3-48, rodent"]
["Mammal, small","Surface Area, alpha parameter for allometric equation",0.11,"BW(kg),SA(m2)","U.S. EPA/ORD 1993","p. 3-14, Eq. 3-22, for all mammals"]
["Mammal, small","Surface Area, beta parameter for allometric equation",0.65,"BW(kg),SA(m2)","U.S. EPA/ORD 1993","p. 3-14, Eq. 3-22, for all mammals"]
["Mammal, small","Water consumption, alpha parameter for allometric equation",9.9000000000000005E-2,"BW(kg),WC(L)","U.S. EPA/ORD 1993","Eq. 3-17, p. 3-10, all mammals"]
["Mammal, small","Water consumption, beta parameter for allometric equation",0.9,"BW(kg),WC(L)","U.S. EPA/ORD 1993","Eq. 3-17, p. 3-10, all mammals"]

{"sheet":"A02c","index":9,"n_rows":24,"n_cols":6,"rows_kept":24,"cut":false,"hidden":false,"merged":[[0,0,0,4]]}
["General reference values and exposure factors used in worksheets."]
[]
["Receptor","Factor","Value","Units"," Reference","Reference Note"]
["Small Insects","Caloric content (wet weight)",1.5,"kcal/g (wet weight)","U.S. EPA/ORD 1993","Table 4-1, p. 4-13.  Value for beetles. Wet weight"]
["Fish","Caloric content (wet weight)",1.2,"kcal/g (wet weight)","U.S. EPA/ORD 1993","Table 4-1, p. 4-13.  Value for bony fish. Wet weight"]
["Vegetation","Caloric content (dry weight)",2.2599999999999998,"kcal/g","U.S. EPA/ORD 1993","p. 3-5, Table 3-1"]
["Vegetation","Water content (proportion)",0.85,"unitless","U.S. EPA/ORD 1993","p. 4-14"]
["VegRR","Broadleaf/forage plants and small insects, central estimate",45,"mg chem/kg veg","Fletcher et al. 1994","Broadleaf/forage plants and small insects"]
["VegRR","Broadleaf/forage plants and small insects, upper range",135,"mg chem/kg veg","Fletcher et al. 1994","Broadleaf/forage plants and small insects"]
["VegRR","Fruits, pods, seeds, and large insects, central estimate",7,"mg chem/kg veg","Fletcher et al. 1994","Fruits, pods, seeds, and large insects"]
["VegRR","Fruits, pods, seeds, and large insects, upper range",15,"mg chem/kg veg","Fletcher et al. 1994","Fruits, pods, seeds, and large insects"]
["VegRR","Broadleaf plants and small insects, granular applications, central estimate",1.8,"mg chem/kg veg","SERA 2005","Broadleaf forage plants and contaminated insects after granular application"]
["VegRR","Broadleaf plants and small insects, granular applications, upper range",5.4,"mg chem/kg veg","SERA 2005","Broadleaf forage plants and contaminated insects after granular application"]
["VegRR","Fruits, granular applications, central estimate",0.28000000000000003,"mg chem/kg veg","SERA 2005","Fruit after granular application"]
["VegRR","Fruits, granular applications, upper range",0.6,"mg chem/kg veg","SERA 2005","Fruit after granular application"]
["VegRR","Short grass, granular applications, lower range",1.2,"mg chem/kg veg","SERA 2005","Short grass after granular application"]
["VegRR","Short grass, granular applications, upper range",9.6,"mg chem/kg veg","SERA 2005","Short grass after granular application"]
["VegRR","Tall grass, granular applications, central estimate",1.44,"mg chem/kg veg","SERA 2005","Tall grass after granular application"]
["VegRR","Tall grass, granular applications, upper range",4.4000000000000004,"mg chem/kg veg","SERA 2005","Tall grass after granular application"]
["VegRR","Short grass, central estimate",85,"mg chem/kg veg","Fletcher et al. 1994","Short grass"]
["VegRR","Short grass, lower range",30,"mg chem/kg veg","SERA 2007","Short grass"]
["VegRR","Short grass, upper range",240,"mg chem/kg veg","Fletcher et al. 1994","Short grass"]
["VegRR","Tall grass, central estimate",36,"mg chem/kg veg","Fletcher et al. 1994","Tall grass"]
["VegRR","Tall grass, upper range",110,"mg chem/kg veg","Fletcher et al. 1994","Tall grass"]

{"sheet":"A02d","index":10,"n_rows":24,"n_cols":6,"rows_kept":24,"cut":false,"hidden":false,"merged":[[0,0,0,4]]}
["General reference values and exposure factors used in worksheets."]
[]
["Receptor","Factor","Value","Units"," Reference","Reference Note"]
["Conversion Factors","acrefoot2gal",325900,"gal/acre-foot","Budavari  1989","N/A"]
["Conversion Factors","liters per gal",3.7850000000000001,"L/gal","Budavari  1989","N/A"]
["Conversion Factors","pound per milligram",453600,"mg/lb","Budavari  1989","N/A"]
["Conversion Factors","lbac2mgcm2",1.1209999999999999E-2,"mg/cm2 per lb/acre","Budavari  1989","N/A"]
["Conversion Factors","lbac2ugcm2",11.21,"ug/cm2 per lb/acre","Budavari  1989","N/A"]
["Conversion Factors","conversion for milligrams to pounds",2.204E-6,"lb/mg","Budavari  1989","N/A"]
["Conversion Factors","conversion for milliliters to gallons",3785,"ml/gal","Budavari  1989","N/A"]
["Misc","Liquid adhering to skin",8.0000000000000002E-3,"mL/cm2","Mason and Johnson 1987","Weight of liquid adhering to surface of skin after a spill"]
["Misc","Dislodgeable residue as proportion",0.1,"none","Harris and Solomon 1992","Estimate of dislodgeable residue as a proportion of application rate shortly after application based on 2,4-D."]
["Standard Pond","Depth",1,"m","Default","Depth of pond"]
["Standard Pond","Surface Area",1000,"m^2","Default","Surface Area"]
["Standard Pond","Volume of Spill ",200,"gallons","Default","Volume of spill"]
["VegRR","Broadleaf/forage plants and small insects, lower range",15,"mg chem/kg veg","SERA 2007","Broadleaf/forage plants and small insects"]
["VegRR","Fruits, pods, seeds, and large insects, lower range",3.2,"mg chem/kg veg","SERA 2007","Fruits, pods, seeds, and large insects"]
["VegRR","Broadleaf plants and small insects, granular applications, lower range",0.6,"mg chem/kg veg","SERA 2007","Broadleaf/forage plants after granular application"]
["VegRR","Fruits, granular applications, lower range",0.13,"mg chem/kg veg","SERA 2007","Fruit after granular application"]
["VegRR","Short grass, granular applications, central estimate",3.4,"mg chem/kg veg","SERA 2005","Short grass after granular application"]
["VegRR","Short grass, granular applications, lower range",1.2,"mg chem/kg veg","SERA 2007","Short grass after granular application"]
["VegRR","Tall grass, granular applications, lower range",0.48,"mg chem/kg veg","SERA 2007","Tall grass after granular application"]
["VegRR","Short grass, lower range",30,"mg chem/kg veg","Fletcher et al. 1994","Short grass"]
["VegRR","Tall grass, lower range",12,"mg chem/kg veg","SERA 2007","Tall grass"]

{"sheet":"A03","index":11,"n_rows":50,"n_cols":8,"rows_kept":50,"cut":false,"hidden":false,"merged":[[0,0,0,6]]}
["Consumption values used in worksheets"]
[]
["Receptor","Item","Qualifier","Modifier","Value","Units"," Reference","Reference Note"]
["Adult Female","Fish","Amount","central estimate",0.01,"kg/day","U.S. EPA/ORD 1996","p. 10-51, average of means from four studies rounded to one significant place."]
["Adult Female","Fish","Amount","upper range",0.158,"kg/day","Ruffle et al. 1994","N/A"]
["Adult Female","Fruit","Proportion of body weight","central estimate",1.6800000000000001E-3,"kg fruit/kg bw/day","U.S. EPA/ORD 1996","Table 9-3, p. 9-11, mean value."]
["Adult Female","Fruit","Proportion of body weight","lower range",1.6800000000000001E-3,"kg fruit/kg bw/day","U.S. EPA/ORD 1996","Table 9-3, p. 9-11. The 5th percentile is given as zero.  For these worksheets, the central estimate is used for the lower bound."]
["Adult Female","Fruit","Proportion of body weight","upper range",1.244E-2,"kg fruit/kg bw/day","U.S. EPA/ORD 1996","Table 9-3, p. 9-11, 95th percentile value."]
["Adult Female","Vegetation, home grown","Proportion of body weight","central estimate",7.6000000000000004E-4,"kg veg/kg bw/day","U.S. EPA/ORD 1996","Table 12-15, p. 9-14, mean for individuals between 20 and 39 years old."]
["Adult Female","Vegetation, home grown","Proportion of body weight","lower range",8.0000000000000007E-5,"kg veg/kg bw/day","U.S. EPA/ORD 1996","Table 12-15, p. 9-14, 5th percentile for individuals between 20 and 39 years old."]
["Adult Female","Vegetation, home grown","Proportion of body weight","upper range",4.9199999999999999E-3,"kg veg/kg bw/day","U.S. EPA/ORD 1996","Table 12-15, p. 9-14, 95th percentile for individuals between 20 and 39 years old."]
["Adult Female","Vegetation","Amount","Extreme",0.45400000000000001,"kg food","U.S. EPA/ORD 1996","1 lb.  The approximate mid range of the above typical and upper limits based on the 64 kg body weight."]
["Adult Female","Vegetation","Proportion of body weight","central estimate",3.5999999999999999E-3,"kg veg/kg bw/day","U.S. EPA/ORD 1996","Table 9-12, p. 9-12, mean."]
["Adult Female","Vegetation","Proportion of body weight","lower range",7.5000000000000002E-4,"kg veg/kg bw/day","U.S. EPA/ORD 1996","Table 9-12, p. 9-12, 5th percentile."]
["Adult Female","Vegetation","Proportion of body weight","upper range",0.01,"kg veg/kg bw/day","U.S. EPA/ORD 1996","Table 9-12, p. 9-12, 95th percentile."]
["Adult Female","Water","Amount","central estimate",2,"L/day","U.S. EPA/ORD 1996","p. 3-28, Table 3-30, midpoint of mean (1.4 L/day) and 90th percentile (2.4 L/day) rounded to one significant place."]
["Adult Female","Water","Amount","lower range",1.4,"L/day","U.S. EPA/ORD 1996","p. 3-28, Table 3-30, mean"]
["Adult Female","Water","Amount","upper range",2.4,"L/day","U.S. EPA/ORD 1996","p. 3-28, Table 3-30, 90th percentile"]
["Adult Male","Fish","Amount","central estimate",0.01,"kg/day","U.S. EPA/ORD 1996","p. 10-51, average of means from four studies rounded to one significant place."]
["Adult Male","Fish","Amount","upper range",0.158,"kg/day","Ruffle et al. 1994","N/A"]
["Adult Male","Fruit","Proportion of body weight","central estimate",1.6800000000000001E-3,"unitless","U.S. EPA/ORD 1996","Table 9-3, p. 9-11, mean value."]
["Adult Male","Fruit","Proportion of body weight","lower range",1.6800000000000001E-3,"unitless","U.S. EPA/ORD 1996","Table 9-3, p. 9-11. The 5th percentile is given as zero.  For these worksheets, the central estimate is used for the lower bound."]
["Adult Male","Fruit","Proportion of body weight","upper range",1.244E-2,"unitless","U.S. EPA/ORD 1996","Table 9-3, p. 9-11, 95th percentile value."]
["Adult Male","Vegetation, home grown","Proportion of body weight","central estimate",7.6000000000000004E-4,"unitless","U.S. EPA/ORD 1996","Table 12-15, p. 9-14, mean for individuals between 20 and 39 years old."]
["Adult Male","Vegetation, home grown","Proportion of body weight","lower range",8.0000000000000007E-5,"unitless","U.S. EPA/ORD 1996","Table 12-15, p. 9-14, 5th percentile for individuals between 20 and 39 years old."]
["Adult Male","Vegetation, home grown","Proportion of body weight","upper range",4.9199999999999999E-3,"unitless","U.S. EPA/ORD 1996","Table 12-15, p. 9-14, 95th percentile for individuals between 20 and 39 years old."]
["Adult Male","Vegetation","Amount","Extreme",0.45400000000000001,"kg/day","U.S. EPA/ORD 1996","1 lb.  The approximate mid range of the above typical and upper limits based on the 64 kg body weight."]
["Adult Male","Vegetation","Proportion of body weight","central estimate",3.5999999999999999E-3,"unitless","U.S. EPA/ORD 1996","Table 9-12, p. 9-12, mean."]
["Adult Male","Vegetation","Proportion of body weight","lower range",7.5000000000000002E-4,"unitless","U.S. EPA/ORD 1996","Table 9-12, p. 9-12, 5th percentile."]
["Adult Male","Vegetation","Proportion of body weight","upper range",0.01,"unitless","U.S. EPA/ORD 1996","Table 9-12, p. 9-12, 95th percentile."]
["Adult Male","Water","Amount","central estimate",2,"L/day","U.S. EPA/ORD 1996","p. 3-28, Table 3-30, midpoint of mean (1.4 L/day) and 90th percentile (2.4 L/day) rounded to one significant place."]
["Adult Male","Water","Amount","lower range",1.4,"L/day","U.S. EPA/ORD 1996","p. 3-28, Table 3-30, mean"]
["Adult Male","Water","Amount","upper range",2.4,"L/day","U.S. EPA/ORD 1996","p. 3-28, Table 3-30, 90th percentile"]
["Subsistence Populations","Fish","Amount","central estimate",8.1000000000000003E-2,"kg/day","U.S. EPA/ORD 1996","p. 10-51, median value of 94 individuals"]
["Subsistence Populations","Fish","Amount","upper range",0.77,"kg/day","U.S. EPA/ORD 1996","p. 10-51, highest value of 94 individuals"]
["Child","Water","Amount","central estimate",1,"L/day","U.S. EPA/ORD 1996","p. 3-28, Table 3-30, midpoint of mean (0.61L/day) and 90th percentile (1.5 L/day) rounded to one significant place."]
["Child","Water","Amount","lower range",0.61,"L/day","U.S. EPA/ORD 1996","p. 3-28, Table 3-30, mean"]
["Child","Water","Amount","upper range",1.5,"L/day","U.S. EPA/ORD 1996","p. 3-28, Table 3-30, 90th percentile"]
["Herbivorous Insect","Broadleaf/Small Insects","Proportion of body weight","central estimate",1.3,"kg food/kg bw/day","Waldbauer 1968","N/A"]
["Herbivorous Insect","Broadleaf/Small Insects","Proportion of body weight","lower range",0.6,"kg food/kg bw/day","Reichle et al. 1973","N/A"]
["Herbivorous Insect","Broadleaf/Small Insects","Proportion of body weight","upper range",2.2000000000000002,"kg food/kg bw/day","Waldbauer 1968","N/A"]
["Herbivorous Insect","Fruit","Proportion of body weight","central estimate",1.3,"kg food/kg bw/day","Waldbauer 1968","N/A"]
["Herbivorous Insect","Fruit","Proportion of body weight","lower range",0.6,"kg food/kg bw/day","Reichle et al. 1973","N/A"]
["Herbivorous Insect","Fruit","Proportion of body weight","upper range",2.2000000000000002,"kg food/kg bw/day","Waldbauer 1968","N/A"]
["Herbivorous Insect","Short grass","Proportion of body weight","central estimate",1.3,"kg food/kg bw/day","Waldbauer 1968","N/A"]
["Herbivorous Insect","Short grass","Proportion of body weight","lower range",0.6,"kg food/kg bw/day","Reichle et al. 1973","N/A"]
["Herbivorous Insect","Short grass","Proportion of body weight","upper range",2.2000000000000002,"kg food/kg bw/day","Waldbauer 1968","N/A"]
["Herbivorous Insect","Tall Grass","Proportion of body weight","central estimate",1.3,"kg food/kg bw/day","Waldbauer 1968","N/A"]
["Herbivorous Insect","Tall Grass","Proportion of body weight","lower range",0.6,"kg food/kg bw/day","Reichle et al. 1973","N/A"]
["Herbivorous Insect","Tall Grass","Proportion of body weight","upper range",2.2000000000000002,"kg food/kg bw/day","Waldbauer 1968","N/A"]

{"sheet":"B01","index":12,"n_rows":22,"n_cols":5,"rows_kept":22,"cut":false,"hidden":false,"merged":[[0,0,0,4]]}
["Chemical and Physical Properties for  Picloram"]
[]
["Property","Receptor","Value","Units","Document Reference"]
["Bioconcentration Factor (BCF), edible, acute","N/A",2000,"L/kg fish","Section 3.2.3.5."]
["Bioconcentration Factor (BCF), edible, chronic","N/A",20000,"L/kg fish","Section 3.2.3.5."]
["Bioconcentration Factor (BCF), whole fish, acute","N/A",2000,"L/kg fish","Section 3.2.3.5."]
["Bioconcentration Factor (BCF), whole fish, chronic","N/A",20000,"L/kg fish","Section 3.2.3.5."]
["Kow (Octanol-water partition coefficient)","N/A",537000,"unitless","Table 2-1"]
["Molecular weight","N/A",241.48,"grams/mole","Table 2-1"]
["Water Solubility","N/A",5.1000000000000004E-3,"mg/L","Table 2-1"]
["First order dermal absorption rate (ka), central estimate","N/A",1.3999999999999999E-4,"per hour","Section 3.2.2.2"]
["First order dermal absorption rate (ka), lower range","N/A",3.0000000000000001E-5,"per hour","Section 3.2.2.2"]
["First order dermal absorption rate (ka), upper range","N/A",4.0000000000000002E-4,"per hour","Section 3.2.2.2"]
["Dermal permeability (Kp), central estimate","N/A",5.7000000000000003E-5,"cm/hour","Section 3.2.2.2"]
["Dermal permeability (Kp), lower range","N/A",2.8E-5,"cm/hour","Section 3.2.2.2"]
["Dermal permeability (Kp), upper range","N/A",1.15E-4,"cm/hour","Section 3.2.2.2"]
["Halftime, central estimate","Fruit",3,"days","Section 3.2.3.6 "]
["Halftime, lower range","Fruit",3,"days","Section 3.2.3.6 "]
["Halftime, upper range","Fruit",3,"days","Section 3.2.3.6 "]
["Halftime, central estimate","Vegetation",3,"days","Section 3.2.3.6 "]
["Halftime, lower range","Vegetation",3,"days","Section 3.2.3.6 "]
["Halftime, upper range","Vegetation",3,"days","Section 3.2.3.6 "]

{"sheet":"B02","index":13,"n_rows":26,"n_cols":7,"rows_kept":26,"cut":false,"hidden":false,"merged":[[0,0,0,6]]}
["Toxicity values for  Picloram"]
[]
["Receptor","Receptor","Qualifier","Endpoint","Value","Units","Document Reference"]
["Human","acute","N/A","Reference Dose (RfD)",0.2,"mg/kg bw","Section 3.3.2."]
["Human","chronic","N/A","Reference Dose (RfD)",9.7999999999999993E-7,"mg/kg bw/day","Section 3.3.3."]
["Fish","acute","sensitive species","LC50",0.8,"mg/L","Section 4.3.3.1."]
["Fish","acute","tolerant species","LC50",55.3,"mg/L","Section 4.3.3.1."]
["Fish","chronic","sensitive species","NOEC",0.71,"mg/L","Section 4.3.3.1."]
["Fish","chronic","tolerant species","LOEC",3.5000000000000003E-2,"mg/L","Section 4.3.3.1."]
["Aquatic invertebrate","acute","sensitive species","LC50",26.8,"mg/L","Section 4.3.3.3."]
["Aquatic invertebrate","acute","tolerant species","LC50",214,"mg/L","Section 4.3.3.3."]
["Aquatic invertebrate","chronic","sensitive species","LC50",3.8,"mg/L","Section 4.3.3.3."]
["Aquatic invertebrate","chronic","tolerant species","NOEC",11.8,"mg/L","Section 4.3.3.3."]
["Algae","N/A","sensitive species","NOEC",0.23,"mg/L","Section 4.3.3.4."]
["Algae","N/A","tolerant species","NOEC",94,"mg/L","Section 4.3.3.4."]
["Macrophyte, aquatic","acute","N/A","NOEC",43.5,"mg/L","Section 4.3.3.4."]
["Macrophyte, aquatic","chronic","N/A","LOEC",0.1,"mg/L","Section 4.3.3.4."]
["Terrestrial plant","Seedling Emergence","sensitive species","NOEC",1.9000000000000001E-4,"lb/acre","Section 4.3.2.4."]
["Terrestrial plant","Seedling Emergence","tolerant species","NOEC",0.4,"lb/acre","Section 4.3.2.4."]
["Terrestrial plant","Vegetative vigor","sensitive species","NOEC",2.1000000000000001E-4,"lb/acre","Section 4.3.2.4."]
["Terrestrial plant","Vegetative vigor","tolerant species","NOEC",6.2E-2,"lb/acre","Section 4.3.2.4."]
["Mammal, Nos","acute","N/A","NOAEL",34,"mg/kg bw","Section 4.3.2.1."]
["Mammal, Nos","chronic","N/A","NOAEL",7,"mg/kg bw/day","Section 4.3.2.1."]
["Bird, NOS","acute","N/A","NOAEL",1500,"mg/kg bw","Section 4.3.2.2."]
["Bird, NOS","chronic","N/A","NOAEL",7,"mg/kg bw/day","Section 4.3.2.2."]
["Honeybee","acute","N/A",">LD50",1000,"mg/kg bw","Section 4.3.2.3."]

{"sheet":"B03a","index":14,"n_rows":28,"n_cols":5,"rows_kept":28,"cut":false,"hidden":false,"merged":[[24,0,27,0],[0,0,0,4],[1,1,1,3],[5,0,7,0],[9,0,12,0],[20,0,23,0]]}
["Calculation of Zero-Order Dermal Permeability Rate (Kp) in cm/hour"]
["Short Title","Calculation of Kp",null,null,"ChemDrmKp"]
["Parameter/Assumption","Code / Range","Equation/   Value","Units","Reference/Designation"]
["Molecular weight","MW",{"$f":"'B01'!$C$9","v":241.48},"g/mole","Table 2-1"]
["Ko/w","Kow",{"$f":"'B01'!$C$8","v":537000},"unitless","Table 2-1"]
["Vector a[]","a[1]",1]
[null,"a[2]",{"$f":"C4","v":241.48}]
[null,"a[3]",{"$f":"LOG10(C5)","v":5.7299742856995559}]
["Transpose of a[] (a')",{"$f":"$C$6","v":1},{"$f":"$C$7","v":241.48},{"$f":"$C$8","v":5.7299742856995559}]
["X'X Cross Product Matrix","X'X"]
[null,5.5931000000000002E-2,-9.4154599999999995E-5,-1.0344300000000001E-2]
[null,-9.4154599999999995E-5,5.9780000000000002E-7,-2.22508E-5]
[null,-1.0344300000000001E-2,-2.22508E-5,7.40677E-3]
["a'X'X a","a'X'X a",{"$f":"MMULT(B9:D9,MMULT(B11:D13, C6:C8))","v":0.10838005562890315}]
["Coefficients for model"]
["Intercept","K0",-2.7257600000000002]
["Coeff for MW","K1",-6.1510000000000002E-3]
["Coeff for Log10(Kow)","K2",0.70664800000000005]
["Standard deviation of model","s",0.72712900000000003]
["Critical value at 0.025 with 87 d.f.","t0.025",1.96]
["Log10 of Estimated dermal permeability rate (Kp)","Log(Kp) = ","K0 + K1  MW + K2 Log10(Kow) "]
[null,"Central",{"$f":" $C$16 + ($C$17*$C$4) + ($C$18*LOG10($C$5))","v":-0.16202861095898058},null,"Eq"]
[null,"Lower 95% CI",{"$f":"$C$22 - ($C$20 * $C$19 * ($C$14^0.5))","v":-0.63121156148497048},null,"Eq"]
[null,"Upper 95% CI",{"$f":"$C$22 + ($C$20 * $C$19 * ($C$14^0.5))","v":0.30715433956700933},null,"Eq"]
["Estimated dermal permeability rate (Kp)","Kp = ","10Log(Kp)"]
[null,"Central",{"$f":"10^C22","v":0.6886069299985611},"cm/hour","Eq"]
[null,"Lower 95% CI",{"$f":"10^C23","v":0.2337698178874909},null,"Eq"]
[null,"Upper 95% CI",{"$f":"10^C24","v":2.0284034454364726},null,"Eq"]

{"sheet":"B03b","index":15,"n_rows":28,"n_cols":5,"rows_kept":28,"cut":false,"hidden":false,"merged":[[24,0,27,0],[0,0,0,4],[1,1,1,3],[5,0,7,0],[9,0,12,0],[20,0,23,0]]}
["Calculation of First-Order Dermal Absorption Rate"]
["Short Title","Calculation of ka",null,null,"ChemDrmKa"]
["Parameter/Assumption","Code / Range","Equation/   Value","Units","Reference/Designation"]
["Molecular weight","MW",{"$f":"'B01'!$C$9","v":241.48},"g/mole","Table 2-1"]
["Ko/w","Kow",{"$f":"'B01'!$C$8","v":537000},"unitless","Table 2-1"]
["Vector a[]","a[1]",1]
[null,"a[2]",{"$f":"C4","v":241.48}]
[null,"a[3]",{"$f":"LOG10(C5)","v":5.7299742856995559}]
["Transpose of a[] (a')",{"$f":"$C$6","v":1},{"$f":"$C$7","v":241.48},{"$f":"$C$8","v":5.7299742856995559}]
["X'X Cross Product Matrix","X'X"]
[null,0.307537,-1.03089E-3,8.2276899999999993E-3]
[null,-1.03089E-3,4.3769999999999998E-6,-9.4435899999999995E-5]
[null,8.2276899999999993E-3,-9.4435899999999995E-5,8.5286000000000008E-3]
["a'X'X a","a'X'X a",{"$f":"MMULT(B9:D9,MMULT(B11:D13, C6:C8))","v":0.17786060075452736}]
["Coefficients for model"]
["Intercept","K0",-1.4961500000000001]
["Coeff for MW","K1",-5.6569999999999997E-3]
["Coeff for Log10(Kow)","K2",0.23325499999999999]
["Standard deviation of model","s",0.78721799999999997]
["Critical value at 0.025 with 26 d.f.","t0.025",2.056]
["Log10 of Estimated first-order absorption rate","Log(ka) = ","K0 + K1  MW + K2 Log10(Kow) "]
[null,"Central",{"$f":"  $C$16 + ($C$17*$C$4) + ($C$18*LOG10($C$5))","v":-1.5256572079891502},null,"Eq"]
[null,"Lower 95% CI",{"$f":"$C$22 - ($C$20 * $C$19 * ($C$14^0.5))","v":-2.2082441935137953},null,"Eq"]
[null,"Upper 95% CI",{"$f":"$C$22 + ($C$20 * $C$19 * ($C$14^0.5))","v":-0.84307022246450514},null,"Eq"]
["Estimated first-order absorption rate","ka = ","10Log(ka)"]
[null,"Central",{"$f":"10^C22","v":2.9808683236645594E-2},"hour-1","Eq"]
[null,"Lower 95% CI",{"$f":"10^C23","v":6.1909287591459753E-3},null,"Eq"]
[null,"Upper 95% CI",{"$f":"10^C24","v":0.14352573432378665},null,"Eq"]

{"sheet":"B04Rt","index":16,"n_rows":11,"n_cols":5,"rows_kept":11,"cut":false,"hidden":false,"merged":[[0,0,0,4],[2,0,5,0],[6,0,9,0],[10,1,10,4]]}
["Estimates of Water Contamination Rates -- i.e., the concentration in ambient water per pound applied per acre"]
["Parameter/Assumption","Code / Range","Equation/ Value","Units","WCRV6"]
["Short-term peak concentrations","Peak",null,null,"WCRV6"]
[null,"Central ","N/A","mg/L","Section 3.2.3.4.1"]
[null,"Lower ","N/A",null,"Section 3.2.3.4.1"]
[null,"Upper ","N/A",null,"Section 3.2.3.4.1"]
["Longer-term average concentrations","Average"]
[null,"Central ",3.8999999999999999E-4,"mg/L","Section 3.2.3.4.2"]
[null,"Lower ",4.0000000000000003E-5,null,"Section 3.2.3.4.2"]
[null,"Upper ",5.0000000000000001E-3,null,"Section 3.2.3.4.2"]
["User Specified Gleams-Driver File:","None"]

{"sheet":"B04a","index":17,"n_rows":21,"n_cols":5,"rows_kept":21,"cut":false,"hidden":false,"merged":[[21,1,21,4],[0,0,0,3],[4,0,7,0],[8,0,11,0],[13,0,16,0],[17,0,20,0]]}
["Expected Concentrations in Surface Water",null,null,null,"EECRtV6"]
["Parameter/Assumption","Code / Range","Equation/ Value","Units","EECRtV6"]
["Application Rate","ApRt",{"$f":"'A01'!ApRt_C","v":3.0000000000000001E-6},"lb/acre","Worksheet A01"]
["Water Contamination Rates"]
["Short-term peak water contamination rates (WCR)","Peak"]
[null,"Central ",{"$f":"B04Rt!$C$4","v":"N/A"},"mg/L","Section 3.2.3.4.1"]
[null,"Lower ",{"$f":"B04Rt!$C$5","v":"N/A"},null,"Section 3.2.3.4.1"]
[null,"Upper ",{"$f":"B04Rt!$C$6","v":"N/A"},null,"Section 3.2.3.4.1"]
["Longer-term average water contamination rates (WCR)","Average"]
[null,"Central ",{"$f":"B04Rt!$C$8","v":3.8999999999999999E-4},"mg/L","Section 3.2.3.4.2"]
[null,"Lower ",{"$f":"B04Rt!$C$9","v":4.0000000000000003E-5},null,"Section 3.2.3.4.2"]
[null,"Upper ",{"$f":"B04Rt!$C$10","v":5.0000000000000001E-3},null,"Section 3.2.3.4.2"]
["EECs in Surface Water"]
["Short-term peak concentrations","Peak"]
[null,"Central ",{"$f":"B04Rt!$C$4","v":"N/A"},"mg/L","Eq"]
[null,"Lower ",{"$f":"B04Rt!$C$5","v":"N/A"},null,"Eq"]
[null,"Upper ",{"$f":"B04Rt!$C$6","v":"N/A"},null,"Eq"]
["Longer-term average concentrations","Average"]
[null,"Central ",{"$f":"$C$3*C10","v":1.1700000000000001E-9},"mg/L","Eq"]
[null,"Lower ",{"$f":"$C$3*C11","v":1.2000000000000003E-10},null,"Eq"]
[null,"Upper ",1.5000000000000002E-8,null,"Eq"]

{"sheet":"B04b","index":18,"n_rows":25,"n_cols":5,"rows_kept":25,"cut":false,"hidden":false,"merged":[[18,0,21,0],[0,0,0,4],[1,1,1,3],[2,1,2,3],[3,1,3,3],[13,0,16,0]]}
["Pond: Concentration of pesticide (liquid formulation) in pond water after an accidental spill"]
["Short Title","Pond Spill",null,null,"PondSpillLiqV6"]
["Receptor","Pond"]
["Duration","Acute"]
["Parameter/Assumption","Code / Range","Equation/   Value","Units","Reference/Designation"]
["Surface Area of Pond","SA",{"$f":"'A01'!C$25","v":1000},"m2","Worksheet A01"]
["Depth of Pond","Depth",{"$f":"'A01'!C$26","v":1},"meter","Worksheet A01"]
["Volume of Pond","VPM",{"$f":"C6*C7","v":1000},"m3","Eq"]
[null,"VPL",{"$f":"1000*C8","v":1000000},"liters","Eq"]
["Concentration in solution","Conc"]
[null,"Central ",{"$f":"'A01'!FldConc_C","v":1.2E-5},"mg/mL","Worksheet A01"]
[null,"Lower ",{"$f":"'A01'!FldConc_L","v":3.5999999999999998E-6},null,"Worksheet A01"]
[null,"Upper ",{"$f":"'A01'!FldConc_U","v":7.2000000000000002E-5},null,"Worksheet A01"]
["Volume of Spill (gallons)","VSGal"]
[null,"Central ",{"$f":"'A01'!C$45","v":100},"gallons","Worksheet A01"]
[null,"Lower ",{"$f":"'A01'!C$46","v":20},null,"Worksheet A01"]
[null,"Upper ",{"$f":"'A01'!C$47","v":200},null,"Worksheet A01"]
["Conversion factor for gallons to liters","Conv",3.7850000000000001,"liters/gal"]
["Volume of Spill (liters)","VSLit","VSGal x Conv"]
[null,"Central ",{"$f":"C15*C$18","v":378.5},"liters","Eq"]
[null,"Lower ",{"$f":"C16*C$18","v":75.7},"liters","Eq"]
[null,"Upper ",{"$f":"C17*C$18","v":757},"liters","Eq"]
["Concentration in pond water at various times after as spill","ConcWat","Conc × 1000 mL/L × VSL ÷ VPL"]
["Time","Central ","Lower ","Upper "]
[0,{"$f":"C11*1000*C20/C$9","v":4.5419999999999999E-6},{"$f":"C12*1000*C21/C$9","v":2.7252000000000001E-7},{"$f":"C13*1000*C22/C$9","v":5.4504000000000005E-5},"mg/L"]

{"sheet":"B04c","index":19,"n_rows":29,"n_cols":7,"rows_kept":29,"cut":false,"hidden":false,"merged":[[0,0,0,4],[1,1,1,3],[2,1,2,3],[3,1,3,3]]}
["Concentration in pond water after direct spray or after drift at distances downwind in feet from the application site"]
["Short Title","Pond, Drift",null,null,"PondDrift3Apps"]
["Receptor","Pond"]
["Duration","Acute"]
["Parameter/Assumption","Code / Range","Equation/   Value","Units","Reference/Designation"]
["Application rate","ApRt",{"$f":"'A01'!ApRt_C","v":3.0000000000000001E-6},"lb/acre","Worksheet A01"]
["Surface Area of Water Column","SA",1,"m2"]
["Depth of Pond","Depth",{"$f":"'A01'!C$26","v":1},"meter","Worksheet A01"]
["Volume of Water Column","V","= SA × Depth"]
[null,"VPM",{"$f":"C7*C8","v":1},"m3","Eq"]
[null,"VPL",{"$f":"1000*C10","v":1000},"liters","Eq"]
["Proportion of Drift at distances downwind in feet [0 feet = direct spray]","Prop","Aerial","High Boom Ground Broadcast","Low Boom Ground Broadcast","Backpack"]
[0,null,1,1,1,1]
[25,null,0.223,0.104,3.5000000000000003E-2,8.3199999999999993E-3]
[50,null,0.17100000000000001,0.05,1.77E-2,4.3299999999999996E-3]
[100,null,9.7900000000000001E-2,2.4799999999999999E-2,9.4800000000000006E-3,2.4099999999999998E-3]
[300,null,3.1199999999999999E-2,7.5300000000000002E-3,3.5000000000000001E-3,9.41E-4]
[500,null,1.9199999999999998E-2,3.9100000000000003E-3,2.0899999999999998E-3,5.7899999999999998E-4]
[900,null,1.24E-2,1.66E-3,1.09E-3,3.1199999999999999E-4]
["Converstion Factor","Conv",112.1,"mg/m2 per lb/acre"]
["Concentration in water at distances downwind in feet","Conc =","SA × Prop × ApR × Conv / VPL"]
["Concentration in water at distances downwind in feet",null,"Aerial","High Boom Ground Broadcast","Low Boom Ground Broadcast","Backpack"]
[{"$f":"A13","v":0},null,{"$f":"$C$7*C13*$C$6*$C$20/$C$11","v":3.3630000000000001E-7},{"$f":"$C$7*D13*$C$6*$C$20/$C$11","v":3.3630000000000001E-7},{"$f":"$C$7*E13*$C$6*$C$20/$C$11","v":3.3630000000000001E-7},{"$f":"$C$7*F13*$C$6*$C$20/$C$11","v":3.3630000000000001E-7},"mg/L"]
[25,null,{"$f":"$C$7*C14*$C$6*$C$20/$C$11","v":7.4994899999999999E-8},3.4975199999999998E-8,1.1770499999999999E-8,2.7980159999999998E-9,"mg/L"]
[50,null,5.7507299999999996E-8,1.6815000000000002E-8,5.9525099999999997E-9,1.4561789999999997E-9,"mg/L"]
[100,null,3.2923769999999997E-8,8.3402399999999993E-9,3.1881240000000004E-9,8.104829999999999E-10,"mg/L"]
[300,null,1.049256E-8,2.5323390000000005E-9,1.1770499999999998E-9,3.1645829999999999E-10,"mg/L"]
[500,null,6.45696E-9,1.3149330000000003E-9,7.0286700000000005E-10,1.9471769999999999E-10,"mg/L"]
[900,null,4.1701199999999997E-9,5.5825799999999998E-10,3.6656699999999998E-10,1.049256E-10,"mg/L"]

{"sheet":"B04d","index":20,"n_rows":33,"n_cols":7,"rows_kept":33,"cut":false,"hidden":false,"merged":[[0,0,0,4],[1,1,1,3],[2,1,2,3],[3,1,3,3]]}
["Concentration in stream water after direct spray or after drift at distances downwind in feet from the application site"]
["Short Title","Stream, Drift",null,null,"StreamDrift3Apps"]
["Receptor","Stream"]
["Duration","Acute"]
["Parameter/Assumption","Code / Range","Equation/   Value","Units","Reference/Designation"]
["Application rate, lbs/acre","ApRt",{"$f":"'A01'!ApRt_C","v":3.0000000000000001E-6},"lb/acre","Worksheet A01"]
["Flow rate of stream","Flow",{"$f":"'A01'!C$27","v":710000},"L/day","Worksheet A01"]
["Converstion Factor, lb/acre to mg/m2","Conv1",112.1,"mg/m2 per lb/acre"]
["Deposition rate, nominal",null,"Dep = ApR × Conv1"]
[null,"Dep",{"$f":"C6*C8","v":3.3629999999999999E-4},"mg/m2","Eq"]
["Length of steam segment","L",{"$f":"'A01'!C$28","v":1038},"feet","Worksheet A01"]
["Width of steam segment","W",{"$f":"'A01'!C$29","v":6},"feet","Worksheet A01"]
["Surface Area of Stream Sprayed, square feet","SA_ft",{"$f":"C11*C12","v":6228},"ft2","Eq"]
["Converstion Factor, square feet to square meters","Conv2",9.2899999999999996E-2,"m2/ft2"]
["Surface Area of Stream Sprayed, square meters","SA_msq",{"$f":"C13*C14","v":578.58119999999997},null,"Eq"]
["Amount deposited on stream surface on spray day","Amnt",{"$f":"C10*C15","v":0.19457685755999998},"mg/day","Eq"]
["Proportion of Drift at distances downwind in feet [0 feet = direct spray]","Prop","Aerial","High Boom Ground Broadcast","Low Boom Ground Broadcast","Backpack"]
[0,null,1,1,1,1]
[25,null,0.223,0.104,3.5000000000000003E-2,8.3199999999999993E-3]
[50,null,0.17100000000000001,0.05,1.77E-2,4.3299999999999996E-3]
[100,null,9.7900000000000001E-2,2.4799999999999999E-2,9.4800000000000006E-3,2.4099999999999998E-3]
[300,null,3.1199999999999999E-2,7.5300000000000002E-3,3.5000000000000001E-3,9.41E-4]
[500,null,1.9199999999999998E-2,3.9100000000000003E-3,2.0899999999999998E-3,5.7899999999999998E-4]
[900,null,1.24E-2,1.66E-3,1.09E-3,3.1199999999999999E-4]
[null,"Conc =","Amnt × Prop / Flow"]
["Concentration in water at distances downwind in feet",null,"Aerial","High Boom Ground Broadcast","Low Boom Ground Broadcast","Backpack"]
[{"$f":"A18","v":0},null,{"$f":"$C$16 * C18 /$C$7","v":2.7405191205633801E-7},{"$f":"$C$16 * D18 /$C$7","v":2.7405191205633801E-7},{"$f":"$C$16 * E18 /$C$7","v":2.7405191205633801E-7},{"$f":"$C$16 * F18 /$C$7","v":2.7405191205633801E-7},"mg/L"]
[25,null,{"$f":"$C$16 * C19 /$C$7","v":6.1113576388563379E-8},2.8501398853859149E-8,9.5918169219718315E-9,2.280111908308732E-9,"mg/L"]
[50,null,4.6862876961633806E-8,1.3702595602816903E-8,4.8507188433971834E-9,1.1866447792039434E-9,"mg/L"]
[100,null,2.6829682190315492E-8,6.7964874189971829E-9,2.5980121262940844E-9,6.6046510805577455E-10,"mg/L"]
[300,null,8.5504196561577453E-9,2.0636108977842254E-9,9.5918169219718307E-10,2.5788284924501408E-10,"mg/L"]
[500,null,5.2617967114816895E-9,1.0715429761402816E-9,5.7276849619774635E-10,1.5867605708061969E-10,"mg/L"]
[900,null,3.3982437094985915E-9,4.5492617401352107E-10,2.9871658414140841E-10,8.5504196561577449E-11,"mg/L"]

{"sheet":"B05a","index":21,"n_rows":58,"n_cols":5,"rows_kept":58,"cut":false,"hidden":false,"merged":[[0,0,0,4],[9,0,12,0],[10,3,12,3],[13,0,16,0],[18,0,21,0],[19,3,21,3],[48,0,51,0],[49,3,51,3],[54,0,57,0],[55,3,57,3],[26,0,29,0],[30,0,33,0],[34,0,37,0],[38,0,41,0],[42,0,45,0],[43,3,45,3]]}
["Concentration of Hexachlorobenzene in Contaminated Fruit "]
["Short Title","Concentration in food item",null,null,"FoodConcV6"]
["Material consumed",null,"Fruit",null,"Scenario parameter"]
["Parameter/Assumption","Code / Range","Equation/   Value","Units","Reference/Designation"]
["Application Information"]
["Application Rate (lbs/acre)","ApRt",{"$f":"'A01'!ApRt_C","v":3.0000000000000001E-6},"lb/acre","Worksheet A01"]
["Number of applications","n",{"$f":"'A01'!C$20","v":1},"unitless","Worksheet A01"]
["Interval between applications","intv",{"$f":"'A01'!C$21","v":1},"days","Worksheet A01"]
["Special Adjustments (See Note 1)"]
["Metabolite Adjustment Factor :  (See risk assessment if this has a value other than 1.)","MetFact"]
[null,"Central ",1,"unitless","Default"]
[null,"Lower ",1,null,"Default"]
[null,"Upper ",1,null,"Default"]
["Toxic Equivalency Factor for formulation:  (See risk assessment if this has a value other than 1.)","TEF"]
[null,"Central ",{"$f":"'A01'!C$37","v":1},"Unitless","Worksheet A01"]
[null,"Lower ",{"$f":"'A01'!C$38","v":1},null,"Worksheet A01"]
[null,"Upper ",{"$f":"'A01'!C$39","v":1},null,"Worksheet A01"]
["Acute Concentrations"]
["Residue Rates","rr"]
[null,"Central ",{"$f":"'A01'!C$65","v":7},"mg/kg food per lb/acre","Worksheet A01"]
[null,"Lower ",{"$f":"'A01'!C$66","v":3.2},null,"Worksheet A01"]
[null,"Upper ",{"$f":"'A01'!C$67","v":15},null,"Worksheet A01"]
["Drift","Drift"]
[null,"Central ",{"$f":"'A01'!C$41","v":1},"proportion","Worksheet A01"]
[null,"Lower ",{"$f":"'A01'!C$42","v":1},null,"Worksheet A01"]
[null,"Upper ",{"$f":"'A01'!C$43","v":1},null,"Worksheet A01"]
["Concentration on commodity immediately after first application.","C0","ApR × rr × Drift × MetFact × TEF"]
[null,"Central ",{"$f":"C$6*C20*$C$24*C11*C15","v":2.1000000000000002E-5},null,"Eq"]
[null,"Lower ",{"$f":"C$6*C21*$C$24*C12*C16","v":9.6000000000000013E-6},null,"Eq"]
[null,"Upper ",{"$f":"C$6*C22*$C$24*C13*C17","v":4.5000000000000003E-5},null,"Eq"]
["Half-life on commodity","Halflife"]
[null,"Central ",{"$f":"'B01'!$C$17","v":3},"Days","Section 3.2.3.6 "]
[null,"Lower ",{"$f":"'B01'!$C$18","v":3},null,"Section 3.2.3.6 "]
[null,"Upper ",{"$f":"'B01'!$C$19","v":3},null,"Section 3.2.3.6 "]
["Decay Coefficient","k","Ln(2)/Halflife"]
[null,"Central ",{"$f":"LN(2)/C32","v":0.23104906018664842},"Days-1","Eq"]
[null,"Upper ",{"$f":"LN(2)/C33","v":0.23104906018664842},"Note 2","Eq"]
[null,"Lower ",{"$f":"LN(2)/C34","v":0.23104906018664842},"Note 2","Eq"]
["Proportion remaining at end of each application interval","p","exp( -k ×  intv)"]
[null,"Central ",{"$f":"EXP(-C36*C$8)","v":0.79370052598409979},"proportion","Eq"]
[null,"Lower ",{"$f":"EXP(-C37*C$8)","v":0.79370052598409979},null,"Eq"]
[null,"Upper ",{"$f":"EXP(-C38*C$8)","v":0.79370052598409979},null,"Eq"]
["Concentration on commodity immediately after last application.","Cn","Cn = C0 × (1- pn) ÷ (1- p)"]
[null,"Central ",{"$f":"C28 * (1-C40^C$7)/(1-C40)","v":2.1000000000000002E-5},"mg/kg food item","Eq"]
[null,"Lower ",{"$f":"C29 * (1-C41^C$7)/(1-C41)","v":9.6000000000000013E-6},null,"Eq"]
[null,"Upper ",{"$f":"C30 * (1-C42^C$7)/(1-C42)","v":4.5000000000000003E-5},null,"Eq"]
["Longer-term Concentrations"]
["Duration for time-weighted average exposure","T",{"$f":"'A01'!C$30","v":365},"Days","Worksheet A01"]
["Time-weighted average concentration on commodity over time, T, after the last application.","ConcTWA","Cn × (1-e-kT) ÷ (k T)"]
[null,"Central ",{"$f":"C44*(1-EXP(-C36*$C$48))/(C36*$C$48)","v":2.4901311664658822E-7},"mg/kg food item","Eq"]
[null,"Lower ",{"$f":"C45*(1-EXP(-C37*$C$48))/(C37*$C$48)","v":1.1383456760986891E-7},null,"Eq"]
[null,"Upper ",5.3359953567126045E-7,null,"Eq"]
["Years of Exposure","ExpYr",{"$f":"'A01'!C23","v":6},"Years"]
["Lifespan","LS",{"$f":"'A01'!C24","v":70},"Years"]
["Lifetime-weighted average concentration.","LSConcTWA","(ExpYr ÷ LS) x ConcTWA"]
[null,"Central ",{"$f":"(C$53/C$54)*C50","v":2.1343981426850418E-8},"mg/kg food item","Eq"]
[null,"Lower ",{"$f":"(C$53/C$54)*C51","v":9.7572486522744786E-9},null,"Eq"]
[null,"Upper ",4.573710305753661E-8,null,"Eq"]

{"sheet":"B05b","index":22,"n_rows":58,"n_cols":5,"rows_kept":58,"cut":false,"hidden":false,"merged":[[0,0,0,4],[9,0,12,0],[10,3,12,3],[13,0,16,0],[18,0,21,0],[19,3,21,3],[48,0,51,0],[49,3,51,3],[54,0,57,0],[55,3,57,3],[26,0,29,0],[30,0,33,0],[34,0,37,0],[38,0,41,0],[42,0,45,0],[43,3,45,3]]}
["Concentration of Pesticide in Contaminated Broadleaf Vegetation "]
["Short Title","Concentration in food item",null,null,"FoodConcV6"]
["Material consumed",null,"Broadleaf Vegetation",null,"Scenario parameter"]
["Parameter/Assumption","Code / Range","Equation/   Value","Units","Reference/Designation"]
["Application Information"]
["Application Rate (lbs/acre)","ApRt",{"$f":"'A01'!ApRt_C","v":3.0000000000000001E-6},"lb/acre","Worksheet A01"]
["Number of applications","n",{"$f":"'A01'!C$20","v":1},"unitless","Worksheet A01"]
["Interval between applications","intv",{"$f":"'A01'!C$21","v":1},"days","Worksheet A01"]
["Special Adjustments (See Note 1)"]
["Metabolite Adjustment Factor :  (See risk assessment if this has a value other than 1.)","MetFact"]
[null,"Central ",1,"unitless","Default"]
[null,"Lower ",1,null,"Default"]
[null,"Upper ",1,null,"Default"]
["Toxic Equivalency Factor for formulation:  (See risk assessment if this has a value other than 1.)","TEF"]
[null,"Central ",{"$f":"'A01'!C$37","v":1},"Unitless","Worksheet A01"]
[null,"Lower ",{"$f":"'A01'!C$38","v":1},null,"Worksheet A01"]
[null,"Upper ",{"$f":"'A01'!C$39","v":1},null,"Worksheet A01"]
["Acute Concentrations"]
["Residue Rates","rr"]
[null,"Central ",{"$f":"'A01'!C$61","v":45},"mg/kg food per lb/acre","Worksheet A01"]
[null,"Lower ",{"$f":"'A01'!C$62","v":15},null,"Worksheet A01"]
[null,"Upper ",{"$f":"'A01'!C$63","v":135},null,"Worksheet A01"]
["Drift","Drift"]
[null,"Central ",{"$f":"'A01'!C$41","v":1},"proportion","Worksheet A01"]
[null,"Lower ",{"$f":"'A01'!C$42","v":1},null,"Worksheet A01"]
[null,"Upper ",{"$f":"'A01'!C$43","v":1},null,"Worksheet A01"]
["Concentration on commodity immediately after first application.","C0","ApR × rr × Drift × MetFact × TEF"]
[null,"Central ",{"$f":"C$6*C20*$C$24*C11*C15","v":1.35E-4},null,"Eq"]
[null,"Lower ",{"$f":"C$6*C21*$C$24*C12*C16","v":4.5000000000000003E-5},null,"Eq"]
[null,"Upper ",{"$f":"C$6*C22*$C$24*C13*C17","v":4.0500000000000003E-4},null,"Eq"]
["Half-life on commodity","Halflife"]
[null,"Central ",{"$f":"'B01'!$C$20","v":3},"Days","Section 3.2.3.6 "]
[null,"Lower ",{"$f":"'B01'!$C$21","v":3},null,"Section 3.2.3.6 "]
[null,"Upper ",{"$f":"'B01'!$C$22","v":3},null,"Section 3.2.3.6 "]
["Decay Coefficient","k","Ln(2)/Halflife"]
[null,"Central ",{"$f":"LN(2)/C32","v":0.23104906018664842},"Days-1","Eq"]
[null,"Upper ",{"$f":"LN(2)/C33","v":0.23104906018664842},"Note 2","Eq"]
[null,"Lower ",{"$f":"LN(2)/C34","v":0.23104906018664842},"Note 2","Eq"]
["Proportion remaining at end of each application interval","p","exp( -k ×  intv)"]
[null,"Central ",{"$f":"EXP(-C36*C$8)","v":0.79370052598409979},"proportion","Eq"]
[null,"Lower ",{"$f":"EXP(-C37*C$8)","v":0.79370052598409979},null,"Eq"]
[null,"Upper ",{"$f":"EXP(-C38*C$8)","v":0.79370052598409979},null,"Eq"]
["Concentration on commodity immediately after last application.","Cn","Cn = C0 × (1- pn) ÷ (1- p)"]
[null,"Central ",{"$f":"C28 * (1-C40^C$7)/(1-C40)","v":1.35E-4},"mg/kg food item","Eq"]
[null,"Lower ",{"$f":"C29 * (1-C41^C$7)/(1-C41)","v":4.5000000000000003E-5},null,"Eq"]
[null,"Upper ",{"$f":"C30 * (1-C42^C$7)/(1-C42)","v":4.0500000000000003E-4},null,"Eq"]
["Longer-term Concentrations"]
["Duration for time-weighted average exposure","T",{"$f":"'A01'!C$30","v":365},"Days","Worksheet A01"]
["Time-weighted average concentration on commodity over time, T, after the last application.","ConcTWA","Cn × (1-e-kT) ÷ (k T)"]
[null,"Central ",{"$f":"C44*(1-EXP(-C36*$C$48))/(C36*$C$48)","v":1.6007986070137813E-6},"mg/kg food item","Eq"]
[null,"Lower ",{"$f":"C45*(1-EXP(-C37*$C$48))/(C37*$C$48)","v":5.3359953567126045E-7},null,"Eq"]
[null,"Upper ",4.8023958210413445E-6,null,"Eq"]
["Years of Exposure","ExpYr",{"$f":"'A01'!C23","v":6},"Years"]
["Lifespan","LS",{"$f":"'A01'!C24","v":70},"Years"]
["Lifetime-weighted average concentration.","LSConcTWA","(ExpYr ÷ LS) x ConcTWA"]
[null,"Central ",{"$f":"(C$53/C$54)*C50","v":1.3721130917260984E-7},"mg/kg food item","Eq"]
[null,"Lower ",{"$f":"(C$53/C$54)*C51","v":4.573710305753661E-8},null,"Eq"]
[null,"Upper ",4.1163392751782951E-7,null,"Eq"]

{"sheet":"C01a","index":23,"n_rows":38,"n_cols":5,"rows_kept":38,"cut":false,"hidden":false,"merged":[[27,3,29,3],[30,0,33,0],[31,3,33,3],[0,0,0,4],[1,1,1,3],[2,1,2,3],[3,1,3,3],[6,0,9,0],[10,0,13,0],[34,0,37,0],[14,0,17,0],[18,0,21,0],[22,0,25,0],[26,0,29,0]]}
["Exposure estimates for Backpack Worker based on the amount of material handled per day"]
["Short Title","General exposure",null,null,"WkGenExp"]
["Receptor","Backpack Worker",null,null,"Worksheet A01"]
["Duration","Chronic"]
["Parameter/Assumption","Code / Range","Equation/ Value","Units","Reference/Equation"]
["Application rates","ApRt",{"$f":"'A01'!ApRt_C","v":3.0000000000000001E-6},"lb/acre","Worksheet A01"]
["Hours of application per day ","Hrs"]
[null,"Central ",{"$f":"'A01'!C$77","v":7},"hours","Worksheet A01"]
[null,"Lower ",{"$f":"'A01'!C$78","v":6},null,"Worksheet A01"]
[null,"Upper ",{"$f":"'A01'!C$79","v":8},null,"Worksheet A01"]
["Acres treated per hour","APH"]
[null,"Central ",{"$f":"'A01'!C$73","v":0.625},"acres/hour","Worksheet A01"]
[null,"Lower ",{"$f":"'A01'!C$74","v":0.25},null,"Worksheet A01"]
[null,"Upper ",{"$f":"'A01'!C$75","v":1},null,"Worksheet A01"]
["Acres treated per day: ","ATD","Hrs × APH"]
[null,"Central ",{"$f":"C8*C12","v":4.375},"acres/day","Eq"]
[null,"Lower ",{"$f":"C9*C13","v":1.5},null,"Eq"]
[null,"Upper ",{"$f":"C10*C14","v":8},null,"Eq"]
["Toxic Equivalency Factor for formulation:  (See risk assessment if this has a value other than 1.)","TEF"]
[null,"Central ",{"$f":"'A01'!C$37","v":1},"unitless","Worksheet A01"]
[null,"Lower ",{"$f":"'A01'!C$38","v":1},null,"Worksheet A01"]
[null,"Upper ",{"$f":"'A01'!C$39","v":1},null,"Worksheet A01"]
["Amount handled per day: ","Amnt","ApRt × ATD  × TEF"]
[null,"Central ",{"$f":"C$6*C16 *C20","v":1.3125000000000001E-5},"lb/day","Eq"]
[null,"Lower ",{"$f":"C$6*C17 *C21","v":4.5000000000000001E-6},null,"Eq"]
[null,"Upper ",{"$f":"C$6*C18 *C22","v":2.4000000000000001E-5},null,"Eq"]
["Absorbed dose rate:","ADR"]
[null,"Central ",{"$f":"'A01'!C$69","v":3.0000000000000001E-3},"(mg agent/kg bw) ÷ (lbs agent handled per day)","Worksheet A01"]
[null,"Lower ",{"$f":"'A01'!C$70","v":2.9999999999999997E-4},null,"Worksheet A01"]
[null,"Upper ",{"$f":"'A01'!C$71","v":0.01},null,"Worksheet A01"]
["Clothing Protection Factor","Prot"]
[null,"Central ",{"$f":"'A01'!C$33","v":0},"Unitless (value between 0 [no protection] and 1 [complete protection])","Worksheet A01"]
[null,"Upper ",{"$f":"'A01'!C$35","v":0},null,"Worksheet A01"]
[null,"Lower ",{"$f":"'A01'!C$34","v":0},null,"Worksheet A01"]
["Absorbed dose","Dose","Amnt × ADR  × (1-Prot)"]
[null,"Central ",{"$f":"C24*C28*(1-C32)","v":3.9375E-8},"mg/kg bw/day","Eq"]
[null,"Lower ",{"$f":"C25*C29*(1-C33)","v":1.3499999999999999E-9},null,"Eq"]
[null,"Upper ",{"$f":"C26*C30*(1-C34)","v":2.4000000000000003E-7},null,"Eq"]

{"sheet":"C01b","index":24,"n_rows":38,"n_cols":5,"rows_kept":38,"cut":false,"hidden":false,"merged":[[27,3,29,3],[30,0,33,0],[31,3,33,3],[0,0,0,4],[1,1,1,3],[2,1,2,3],[3,1,3,3],[6,0,9,0],[10,0,13,0],[34,0,37,0],[14,0,17,0],[18,0,21,0],[22,0,25,0],[26,0,29,0]]}
["Exposure estimates for Ground Boom Worker based on the amount of material handled per day"]
["Short Title","General exposure",null,null,"WkGenExp"]
["Receptor","Ground Boom Worker",null,null,"Worksheet A01"]
["Duration","Chronic"]
["Parameter/Assumption","Code / Range","Equation/ Value","Units","Reference/Equation"]
["Application rates","ApRt",{"$f":"'A01'!ApRt_C","v":3.0000000000000001E-6},"lb/acre","Worksheet A01"]
["Hours of application per day ","Hrs"]
[null,"Central ",7,"hours","Worksheet A01"]
[null,"Lower ",6,null,"Worksheet A01"]
[null,"Upper ",8,null,"Worksheet A01"]
["Acres treated per hour","APH"]
[null,"Central ",16,"acres/hour","Worksheet A01"]
[null,"Lower ",11,null,"Worksheet A01"]
[null,"Upper ",21,null,"Worksheet A01"]
["Acres treated per day: ","ATD","Hrs × APH"]
[null,"Central ",{"$f":"C8*C12","v":112},"acres/day","Eq"]
[null,"Lower ",{"$f":"C9*C13","v":66},null,"Eq"]
[null,"Upper ",{"$f":"C10*C14","v":168},null,"Eq"]
["Toxic Equivalency Factor for formulation:  (See risk assessment if this has a value other than 1.)","TEF"]
[null,"Central ",{"$f":"'A01'!C$37","v":1},"unitless","Worksheet A01"]
[null,"Lower ",{"$f":"'A01'!C$38","v":1},null,"Worksheet A01"]
[null,"Upper ",{"$f":"'A01'!C$39","v":1},null,"Worksheet A01"]
["Amount handled per day: ","Amnt","ApRt × ATD  × TEF"]
[null,"Central ",{"$f":"C$6*C16 *C20","v":3.3600000000000004E-4},"lb/day","Eq"]
[null,"Lower ",{"$f":"C$6*C17 *C21","v":1.9800000000000002E-4},null,"Eq"]
[null,"Upper ",{"$f":"C$6*C18 *C22","v":5.04E-4},null,"Eq"]
["Absorbed dose rate:","ADR"]
[null,"Central ",2.0000000000000001E-4,"(mg agent/kg bw) ÷ (lbs agent handled per day)","Worksheet A01"]
[null,"Lower ",1.0000000000000001E-5,null,"Worksheet A01"]
[null,"Upper ",8.9999999999999998E-4,null,"Worksheet A01"]
["Clothing Protection Factor","Prot"]
[null,"Central ",{"$f":"'A01'!C$33","v":0},"Unitless (value between 0 [no protection] and 1 [complete protection])","Worksheet A01"]
[null,"Upper ",{"$f":"'A01'!C$35","v":0},null,"Worksheet A01"]
[null,"Lower ",{"$f":"'A01'!C$34","v":0},null,"Worksheet A01"]
["Absorbed dose","Dose","Amnt × ADR  × (1-Prot)"]
[null,"Central ",{"$f":"C24*C28*(1-C32)","v":6.7200000000000006E-8},"mg/kg bw/day","Eq"]
[null,"Lower ",{"$f":"C25*C29*(1-C33)","v":1.9800000000000002E-9},null,"Eq"]
[null,"Upper ",{"$f":"C26*C30*(1-C34)","v":4.5359999999999999E-7},null,"Eq"]

{"sheet":"C01c","index":25,"n_rows":38,"n_cols":5,"rows_kept":38,"cut":false,"hidden":false,"merged":[[27,3,29,3],[30,0,33,0],[31,3,33,3],[0,0,0,4],[1,1,1,3],[2,1,2,3],[3,1,3,3],[6,0,9,0],[10,0,13,0],[34,0,37,0],[14,0,17,0],[18,0,21,0],[22,0,25,0],[26,0,29,0]]}
["Exposure estimates for Aerial Spray Worker based on the amount of material handled per day"]
["Short Title","General exposure",null,null,"WkGenExp"]
["Receptor","Aerial Spray Worker",null,null,"Worksheet A01"]
["Duration","Chronic"]
["Parameter/Assumption","Code / Range","Equation/ Value","Units","Reference/Equation"]
["Application rates","ApRt",{"$f":"'A01'!ApRt_C","v":3.0000000000000001E-6},"lb/acre","Worksheet A01"]
["Hours of application per day ","Hrs"]
[null,"Central ",7,"hours","Worksheet A01"]
[null,"Lower ",6,null,"Worksheet A01"]
[null,"Upper ",8,null,"Worksheet A01"]
["Acres treated per hour","APH"]
[null,"Central ",70,"acres/hour","Worksheet A01"]
[null,"Lower ",40,null,"Worksheet A01"]
[null,"Upper ",100,null,"Worksheet A01"]
["Acres treated per day: ","ATD","Hrs × APH"]
[null,"Central ",{"$f":"C8*C12","v":490},"acres/day","Eq"]
[null,"Lower ",{"$f":"C9*C13","v":240},null,"Eq"]
[null,"Upper ",{"$f":"C10*C14","v":800},null,"Eq"]
["Toxic Equivalency Factor for formulation:  (See risk assessment if this has a value other than 1.)","TEF"]
[null,"Central ",{"$f":"'A01'!C$37","v":1},"unitless","Worksheet A01"]
[null,"Lower ",{"$f":"'A01'!C$38","v":1},null,"Worksheet A01"]
[null,"Upper ",{"$f":"'A01'!C$39","v":1},null,"Worksheet A01"]
["Amount handled per day: ","Amnt","ApRt × ATD  × TEF"]
[null,"Central ",{"$f":"C$6*C16 *C20","v":1.47E-3},"lb/day","Eq"]
[null,"Lower ",{"$f":"C$6*C17 *C21","v":7.2000000000000005E-4},null,"Eq"]
[null,"Upper ",{"$f":"C$6*C18 *C22","v":2.4000000000000002E-3},null,"Eq"]
["Absorbed dose rate:","ADR"]
[null,"Central ",3.0000000000000001E-5,"(mg agent/kg bw) ÷ (lbs agent handled per day)","Worksheet A01"]
[null,"Lower ",9.9999999999999995E-7,null,"Worksheet A01"]
[null,"Upper ",1E-4,null,"Worksheet A01"]
["Clothing Protection Factor","Prot"]
[null,"Central ",{"$f":"'A01'!C$33","v":0},"Unitless (value between 0 [no protection] and 1 [complete protection])","Worksheet A01"]
[null,"Upper ",{"$f":"'A01'!C$35","v":0},null,"Worksheet A01"]
[null,"Lower ",{"$f":"'A01'!C$34","v":0},null,"Worksheet A01"]
["Absorbed dose","Dose","Amnt × ADR  × (1-Prot)"]
[null,"Central ",{"$f":"C24*C28*(1-C32)","v":4.4099999999999998E-8},"mg/kg bw/day","Eq"]
[null,"Lower ",{"$f":"C25*C29*(1-C33)","v":7.2E-10},null,"Eq"]
[null,"Upper ",{"$f":"C26*C30*(1-C34)","v":2.4000000000000003E-7},null,"Eq"]

{"sheet":"D04a","index":26,"n_rows":21,"n_cols":5,"rows_kept":21,"cut":false,"hidden":false,"merged":[[17,0,20,0],[0,0,0,4],[2,1,2,3],[7,0,10,0],[8,3,10,3],[12,0,15,0],[13,3,15,3]]}
["Consumption of Fruit by a Adult Female, Chronic exposure."]
["Short Title","Contaminated Fruit",null,null,"FdPropBwV6"]
["Receptor","Adult Female"]
["Duration","Chronic",null,null,"Scenario parameter"]
["Material consumed","Fruit"]
["Parameter/Assumption","Code / Range","Equation/   Value","Units","Reference/Designation"]
["Commodity"]
["Concentration on vegetation","Conc"]
[null,"Central ",{"$f":"B05a!Chronic_C","v":2.1343981426850418E-8},"mg/kg food","='B05a'!Chronic_C"]
[null,"Lower ",{"$f":"B05a!Chronic_L","v":9.7572486522744786E-9},null,"='B05a'!Chronic_L"]
[null,"Upper ",{"$f":"B05a!Chronic_U","v":4.573710305753661E-8},null,"='B05a'!Chronic_U"]
["Receptor"]
["Amount consumed per day  per unit body weight","Amnt"]
[null,"Central ",{"$f":"'A03'!$E$6","v":1.6800000000000001E-3},"kg food/kg BW per day","U.S. EPA/ORD 1996"]
[null,"Lower ",{"$f":"'A03'!$E$7","v":1.6800000000000001E-3},null,"U.S. EPA/ORD 1996"]
[null,"Upper ",{"$f":"'A03'!$E$8","v":1.244E-2},null,"U.S. EPA/ORD 1996"]
["Estimate"]
["Dose","Dose","Conc × Amnt"]
[null,"Central",{"$f":"C14*C9","v":3.5857888797108702E-11},"mg/kg bw","Eq"]
[null,"Lower",{"$f":"C15*C10","v":1.6392177735821126E-11},null,"Eq"]
[null,"Upper",{"$f":"C16*C11","v":5.6896956203575544E-10},null,"Eq"]

{"sheet":"D04b","index":27,"n_rows":21,"n_cols":5,"rows_kept":21,"cut":false,"hidden":false,"merged":[[17,0,20,0],[0,0,0,4],[2,1,2,3],[7,0,10,0],[8,3,10,3],[12,0,15,0],[13,3,15,3]]}
["Consumption of Vegetation by a Adult Female, Chronic exposure."]
["Short Title","Contaminated Vegetation",null,null,"FdPropBwV6"]
["Receptor","Adult Female"]
["Duration","Chronic",null,null,"Scenario parameter"]
["Material consumed","Vegetation"]
["Parameter/Assumption","Code / Range","Equation/   Value","Units","Reference/Designation"]
["Commodity"]
["Concentration on vegetation","Conc"]
[null,"Central ",{"$f":"B05b!Chronic_C","v":1.3721130917260984E-7},"mg/kg food","='B05b'!Chronic_C"]
[null,"Lower ",{"$f":"B05b!Chronic_L","v":4.573710305753661E-8},null,"='B05b'!Chronic_L"]
[null,"Upper ",{"$f":"B05b!Chronic_U","v":4.1163392751782951E-7},null,"='B05b'!Chronic_U"]
["Receptor"]
["Amount consumed per day  per unit body weight","Amnt"]
[null,"Central ",{"$f":"'A03'!$E$13","v":3.5999999999999999E-3},"kg food/kg BW per day","U.S. EPA/ORD 1996"]
[null,"Lower ",{"$f":"'A03'!$E$14","v":7.5000000000000002E-4},null,"U.S. EPA/ORD 1996"]
[null,"Upper ",{"$f":"'A03'!$E$15","v":0.01},null,"U.S. EPA/ORD 1996"]
["Estimate"]
["Dose","Dose","Conc × Amnt"]
[null,"Central",{"$f":"C14*C9","v":4.9396071302139535E-10},"mg/kg bw","Eq"]
[null,"Lower",{"$f":"C15*C10","v":3.4302827293152458E-11},null,"Eq"]
[null,"Upper",{"$f":"C16*C11","v":4.1163392751782951E-9},null,"Eq"]

{"sheet":"D04Soil","index":28,"n_rows":40,"n_cols":5,"rows_kept":40,"cut":false,"hidden":false,"merged":[[17,0,20,0],[18,3,20,3],[0,0,0,4],[2,1,2,3],[7,0,10,0],[12,0,15,0],[13,3,15,3],[23,0,26,0],[24,3,26,3],[28,0,31,0],[29,3,31,3],[36,0,39,0]]}
["Consumption of Fruit by a Adult Female, Chronic exposure."]
["Short Title","Contaminated Tuber",null,null,"FdPropBwV6"]
["Receptor","Adult Female"]
["Duration","Chronic",null,null,"Scenario parameter"]
["Material consumed","Tuber"]
["Parameter/Assumption","Code / Range","Equation/   Value","Units","Reference/Designation"]
["Soil"]
["Peak concentration in soil at modeled application rate","MdSoilConc",null,null,"Risk Assessment"]
[null,"Central ",0.18099999999999999,"mg/kg soil"]
[null,"Lower ",0.17499999999999999]
[null,"Upper ",0.19500000000000001]
["Modeled Application Rate","MdRt",0.1,"lb/acre","Risk Assessment"]
["Peak concentration at unit application rate of 1 lb/acre (Soil Contamination Rate)","SCR","= MdSoilConc / MdRt"]
[null,"Central ",{"$f":"C9/C$12","v":1.8099999999999998},"mg/kg soil per lb/acre","Eq"]
[null,"Lower ",{"$f":"C10/C$12","v":1.7499999999999998},null,"Eq"]
[null,"Upper ",1.95,null,"Eq"]
["Functional Application Rate","ApRt",{"$f":"'A01'!ApRt_C","v":3.0000000000000001E-6},"lb/acre","Worksheet A01"]
["Estimated Peak concentration in soil.","SoilConc","= SCR x ApRt"]
[null,"Central ",{"$f":"C14*C$17","v":5.4299999999999997E-6},"mg/kg soil per lb/acre","Eq"]
[null,"Lower ",{"$f":"C15*C$17","v":5.2499999999999997E-6},null,"Eq"]
[null,"Upper ",5.8499999999999999E-6,null,"Eq"]
["Bioconcentration Factor from Soil","BCF",19,null,"Risk Assessment"]
["Commodity"]
["Concentration in comodity","Conc","= SoilConc x BCF"]
[null,"Central ",{"$f":"C19*C$22","v":1.0316999999999999E-4},"mg/kg food","Eq"]
[null,"Lower ",{"$f":"C20*C$22","v":9.9749999999999999E-5},null,"Eq"]
[null,"Upper ",1.1114999999999999E-4,null,"Eq"]
["Receptor"]
["Amount consumed per day  per unit body weight","Amnt"]
[null,"Central ",{"$f":"'A03'!E6","v":1.6800000000000001E-3},"kg food/kg BW per day","Risk Assessment"]
[null,"Lower ",{"$f":"'A03'!E7","v":1.6800000000000001E-3}]
[null,"Upper ",{"$f":"'A03'!E8","v":1.244E-2}]
["Duration Adjustments"]
["Years of Exposure","ExpYr",{"$f":"'A01'!C23","v":6},"Years"]
["Lifespan","LS",{"$f":"'A01'!C24","v":70},"Years"]
["Estimate"]
["Dose","Dose","Conc × Amnt × ExpYr / LS"]
[null,"Central",{"$f":"C30*C25 * C$34/C$35","v":1.4856479999999997E-8},"mg/kg bw","Eq"]
[null,"Lower",{"$f":"C31*C26 * C$34/C$35","v":1.4364E-8},null,"Eq"]
[null,"Upper",1.1851765714285713E-7,null,"Eq"]

{"sheet":"D07","index":29,"n_rows":19,"n_cols":5,"rows_kept":19,"cut":false,"hidden":false,"merged":[[15,0,18,0],[0,0,0,4],[1,1,1,3],[2,1,2,3],[5,0,8,0],[10,0,13,0]]}
["Consumption of contaminated water by Adult Male, Longer-term Conentrations "]
["Short Title","Longer-term Conentrations",null,null,"WatAmntV6"]
["Receptor","Adult Male"]
["Duration","Chronic",null,null,"Scenario parameter"]
["Parameter/Assumption","Code / Range","Equation/   Value","Units","Reference/Designation"]
["Concentration in water","ConcWat"]
[null,"Central ",{"$f":"B04a!Chronic_C","v":1.1700000000000001E-9},"mg/L","='B04a'!Chronic_C"]
[null,"Lower ",{"$f":"B04a!Chronic_L","v":1.2000000000000003E-10},null,"='B04a'!Chronic_L"]
[null,"Upper ",{"$f":"B04a!Chronic_U","v":1.5000000000000002E-8},null,"='B04a'!Chronic_U"]
["Receptor"]
["Amount of water consumed in one day","Amnt"]
[null,"Central ",{"$f":"'A03'!$E$31","v":2},"liters/day","U.S. EPA/ORD 1996"]
[null,"Lower ",{"$f":"'A03'!$E$32","v":1.4},null,"U.S. EPA/ORD 1996"]
[null,"Upper ",{"$f":"'A03'!$E$33","v":2.4},null,"U.S. EPA/ORD 1996"]
["Body weight","BW",{"$f":"A02a!$C$8","v":70},"kg","ICRP 1975"]
["Dose","Dose","ConcWat  × Amnt ÷ BW"]
[null,"Central ",{"$f":"C7*C12/C$15","v":3.3428571428571429E-11},"mg/kg","Eq"]
[null,"Lower ",{"$f":"C8*C13/C$15","v":2.4000000000000003E-12},"mg/kg","Eq"]
[null,"Upper ",{"$f":"C9*C14/C$15","v":5.1428571428571437E-10},"mg/kg","Eq"]

{"sheet":"D09a","index":30,"n_rows":34,"n_cols":5,"rows_kept":34,"cut":false,"hidden":false,"merged":[[15,0,18,0],[20,0,23,0],[24,0,27,0],[29,0,32,0],[0,0,0,4],[1,1,1,3],[2,1,2,3],[3,1,3,3],[6,0,9,0],[12,0,14,0]]}
["Consumption of Contaminated Fish (Longer-term), Adult Male, chronic exposure"]
["Short Title","Fish consumption",null,null,"FishAmntV6"]
["Receptor","Adult Male"]
["Duration","chronic"]
["Parameter/Assumption","Code / Range","Equation/   Value","Units","Reference/Designation"]
["Water"]
["Concentration in water","ConcWat","ApR × WCR"]
[null,"Central ",{"$f":"B04a!Chronic_C","v":1.1700000000000001E-9},"mg/L","='B04a'!Chronic_C"]
[null,"Lower ",{"$f":"B04a!Chronic_L","v":1.2000000000000003E-10},null,"='B04a'!Chronic_L"]
[null,"Upper ",{"$f":"B04a!Chronic_U","v":1.5000000000000002E-8},null,"='B04a'!Chronic_U"]
["Fish"]
["Bioconcentration factor","BCF"]
[null,"Central ",{"$f":"'B01'!$C$5","v":20000},"L/kg","Section 3.2.3.5."]
[null,"Lower ",{"$f":"'B01'!$C$5","v":20000},null,"Section 3.2.3.5."]
[null,"Upper ",{"$f":"'B01'!$C$5","v":20000},null,"Section 3.2.3.5."]
["Concentration in fish","ConcFish","ConcWat × BCF"]
[null,"Central ",{"$f":"C8*C13","v":2.3400000000000003E-5},"mg/kg","Eq"]
[null,"Lower ",{"$f":"C9*C14","v":2.4000000000000003E-6},null,"Eq"]
[null,"Upper ",{"$f":"C10*C15","v":3.0000000000000003E-4},null,"Eq"]
["Receptor"]
["Amount of fish consumed","Amnt"]
[null,"Central ",{"$f":"'A03'!$E$19","v":0.01},"kg/day","U.S. EPA/ORD 1996"]
[null,"Lower ",{"$f":"'A03'!$E$19","v":0.01},null,"U.S. EPA/ORD 1996"]
[null,"Upper ",{"$f":"'A03'!$E$19","v":0.01},null,"U.S. EPA/ORD 1996"]
["Toxic Equivalency Factor for formulation:  (See risk assessment if this has a value other than 1.)","TEF"]
[null,"Central ",{"$f":"'A01'!C$37","v":1},"Unitless","Worksheet A01"]
[null,"Lower ",{"$f":"'A01'!C$38","v":1},null,"Worksheet A01"]
[null,"Upper ",{"$f":"'A01'!C$39","v":1},null,"Worksheet A01"]
["Body weight","BW",{"$f":"A02a!$C$8","v":70},"kg","ICRP 1975"]
["Dose","Dose","ConcFish× Amnt x TEF ÷ BW"]
[null,"Central ",{"$f":"C17*C22*C26/C$29","v":3.3428571428571433E-9},"mg/kg","Eq"]
[null,"Lower ",{"$f":"C18*C23*C27/C$29","v":3.4285714285714291E-10},"mg/kg","Eq"]
[null,"Upper ",{"$f":"C19*C24*C28/C$29","v":4.2857142857142865E-8},"mg/kg","Eq"]
[null,null,null,null,"FishAmntV6"]

{"sheet":"D09b","index":31,"n_rows":34,"n_cols":5,"rows_kept":34,"cut":false,"hidden":false,"merged":[[15,0,18,0],[20,0,23,0],[24,0,27,0],[29,0,32,0],[0,0,0,4],[1,1,1,3],[2,1,2,3],[3,1,3,3],[6,0,9,0],[12,0,14,0]]}
["Consumption of Contaminated Fish (Longer-term), Subsistence Populations, chronic exposure"]
["Short Title","Fish consumption",null,null,"FishAmntV6"]
["Receptor","Subsistence Populations"]
["Duration","chronic"]
["Parameter/Assumption","Code / Range","Equation/   Value","Units","Reference/Designation"]
["Water"]
["Concentration in water","ConcWat","ApR × WCR"]
[null,"Central ",{"$f":"B04a!Chronic_C","v":1.1700000000000001E-9},"mg/L","='B04a'!Chronic_C"]
[null,"Lower ",{"$f":"B04a!Chronic_L","v":1.2000000000000003E-10},null,"='B04a'!Chronic_L"]
[null,"Upper ",{"$f":"B04a!Chronic_U","v":1.5000000000000002E-8},null,"='B04a'!Chronic_U"]
["Fish"]
["Bioconcentration factor","BCF"]
[null,"Central ",{"$f":"'B01'!$C$5","v":20000},"L/kg","Section 3.2.3.5."]
[null,"Lower ",{"$f":"'B01'!$C$5","v":20000},null,"Section 3.2.3.5."]
[null,"Upper ",{"$f":"'B01'!$C$5","v":20000},null,"Section 3.2.3.5."]
["Concentration in fish","ConcFish","ConcWat × BCF"]
[null,"Central ",{"$f":"C8*C13","v":2.3400000000000003E-5},"mg/kg","Eq"]
[null,"Lower ",{"$f":"C9*C14","v":2.4000000000000003E-6},null,"Eq"]
[null,"Upper ",{"$f":"C10*C15","v":3.0000000000000003E-4},null,"Eq"]
["Receptor"]
["Amount of fish consumed","Amnt"]
[null,"Central ",{"$f":"'A03'!$E$34","v":8.1000000000000003E-2},"kg/day","U.S. EPA/ORD 1996"]
[null,"Lower ",{"$f":"'A03'!$E$34","v":8.1000000000000003E-2},null,"U.S. EPA/ORD 1996"]
[null,"Upper ",{"$f":"'A03'!$E$34","v":8.1000000000000003E-2},null,"U.S. EPA/ORD 1996"]
["Toxic Equivalency Factor for formulation:  (See risk assessment if this has a value other than 1.)","TEF"]
[null,"Central ",{"$f":"'A01'!C$37","v":1},"Unitless","Worksheet A01"]
[null,"Lower ",{"$f":"'A01'!C$38","v":1},null,"Worksheet A01"]
[null,"Upper ",{"$f":"'A01'!C$39","v":1},null,"Worksheet A01"]
["Body weight","BW",{"$f":"A02a!$C$9","v":70},"kg","ICRP 1975"]
["Dose","Dose","ConcFish× Amnt x TEF ÷ BW"]
[null,"Central ",{"$f":"C17*C22*C26/C$29","v":2.7077142857142862E-8},"mg/kg","Eq"]
[null,"Lower ",{"$f":"C18*C23*C27/C$29","v":2.7771428571428575E-9},"mg/kg","Eq"]
[null,"Upper ",{"$f":"C19*C24*C28/C$29","v":3.471428571428572E-7},"mg/kg","Eq"]
[null,null,null,null,"FishAmntV6"]

{"sheet":"E01","index":32,"n_rows":13,"n_cols":6,"rows_kept":13,"cut":false,"hidden":false,"merged":[[0,0,0,5],[1,2,1,4],[2,0,3,0],[2,1,3,1],[2,2,2,4],[2,5,3,5]]}
["Worksheet E01: Summary of Worker Exposure Assessments"]
["Application Rate:",{"$f":"'A01'!ApRt_C","v":3.0000000000000001E-6}," lb a.e./acre",null,null,"E01aV5-3Wrkr"]
["Scenario","Receptor","mg/kg/day or mg/kg/event",null,null,"Detail Worksheet"]
[null,null,"Central","Lower","Upper"]
["Accidental/Incidental Exposures"]
["Contaminated Gloves, 1 min.","Worker","No exposure assessment"]
["Contaminated Gloves, 1 hour","Worker","No exposure assessment"]
["Spill on Hands, 1 hour","Worker","No exposure assessment"]
["Spill on lower legs, 1 hour","Worker","No exposure assessment"]
["General Exposures"]
[null,"Backpack Applications:",{"$f":"'C01a'!Dose_C","v":3.9375E-8},{"$f":"'C01a'!Dose_L","v":1.3499999999999999E-9},{"$f":"'C01a'!Dose_U","v":2.4000000000000003E-7},"C01a"]
[null,"Ground Broadcast Applications:",{"$f":"'C01b'!Dose_C","v":6.7200000000000006E-8},{"$f":"'C01b'!Dose_L","v":1.9800000000000002E-9},{"$f":"'C01b'!Dose_U","v":4.5359999999999999E-7},"C01b"]
[null,"Aerial Applications:",{"$f":"'C01c'!Dose_C","v":4.4099999999999998E-8},{"$f":"'C01c'!Dose_L","v":7.2E-10},{"$f":"'C01c'!Dose_U","v":2.4000000000000003E-7},"C01c"]

{"sheet":"E02","index":33,"n_rows":13,"n_cols":6,"rows_kept":13,"cut":false,"hidden":false,"merged":[[0,0,0,5],[1,2,1,4],[2,0,3,0],[2,1,3,1],[2,2,2,4],[2,5,3,5]]}
["Worksheet E01: Summary of Worker Hazard Quotients (Toxicity)"]
["Application Rate:",{"$f":"'A01'!ApRt_C","v":3.0000000000000001E-6}," lb a.e./acre",null,null,"E01aV5-3Wrkr"]
["Scenario","Receptor","Hazard Quotients",null,null,"Toxicity Value"]
[null,null,"Central","Lower","Upper"]
["Accidental/Incidental Exposures"]
["Contaminated Gloves, 1 min.","Worker","No exposure assessment"]
["Contaminated Gloves, 1 hour","Worker","No exposure assessment"]
["Spill on Hands, 1 hour","Worker","No exposure assessment"]
["Spill on lower legs, 1 hour","Worker","No exposure assessment"]
["General Exposures"]
[null,"Backpack Applications:",{"$f":"'C01a'!$C$36/$F$11","v":4.0178571428571432E-2},{"$f":"'C01a'!$C$37/$F$11","v":1.3775510204081633E-3},{"$f":"'C01a'!$C$38/$F$11","v":0.24489795918367352},{"$f":"'B02'!$E$5","v":9.7999999999999993E-7}]
[null,"Ground Broadcast Applications:",{"$f":"'C01b'!$C$36/$F$12","v":6.8571428571428589E-2},{"$f":"'C01b'!$C$37/$F$12","v":2.0204081632653067E-3},{"$f":"'C01b'!$C$38/$F$12","v":0.46285714285714286},{"$f":"'B02'!$E$5","v":9.7999999999999993E-7}]
[null,"Aerial Applications:",{"$f":"'C01c'!$C$36/$F$13","v":4.4999999999999998E-2},{"$f":"'C01c'!$C$37/$F$13","v":7.3469387755102048E-4},{"$f":"'C01c'!$C$38/$F$13","v":0.24489795918367352},{"$f":"'B02'!$E$5","v":9.7999999999999993E-7}]

{"sheet":"E03","index":34,"n_rows":25,"n_cols":6,"rows_kept":25,"cut":false,"hidden":false,"merged":[[0,0,0,5],[1,2,1,4],[2,0,3,0],[2,1,3,1],[2,2,2,4],[2,5,3,5]]}
["Worksheet E03: Summary of Exposure Assessments for the General Public"]
["Application Rate:",{"$f":"'A01'!ApRt_C","v":3.0000000000000001E-6}," lb a.e./acre",null,null,"E03aV6"]
["Scenario","Receptor","mg/kg/day or mg/kg/event",null,null,"Detail Worksheet"]
[null,null,"Central","Lower","Upper"]
["Accidental Acute Exposures (dose in mg/kg/event)"]
["Direct Spray of Child, whole body","Child","No exposure assessment"]
["Direct Spray of Woman, feet and lower legs","Adult Female","No exposure assessment"]
["Water consumption (spill)","Child","No exposure assessment"]
["Fish consumption (spill)","Adult Male","No exposure assessment"]
["Fish consumption (spill)","Subsistence Populations","No exposure assessment"]
["Non-Accidental Acute Exposures (dose in mg/kg/event)"]
["Vegetation Contact, shorts and T-shirt","Adult Female","No exposure assessment"]
["Contaminated Fruit","Adult Female","No exposure assessment"]
["Contaminated Vegetation","Adult Female","No exposure assessment"]
["Swimming, one hour","Adult Female","No exposure assessment"]
["Water consumption","Child","No exposure assessment"]
["Fish consumption","Adult Male","No exposure assessment"]
["Fish consumption","Subsistence Populations","No exposure assessment"]
["Chronic/Longer Term Exposures (dose in mg/kg/day)"]
["Contaminated Fruit","Adult Female",{"$f":"D04a!Dose_C","v":3.5857888797108702E-11},{"$f":"D04a!Dose_L","v":1.6392177735821126E-11},{"$f":"D04a!Dose_U","v":5.6896956203575544E-10},"D04a"]
["Contaminated Vegetation","Adult Female",{"$f":"D04b!Dose_C","v":4.9396071302139535E-10},{"$f":"D04b!Dose_L","v":3.4302827293152458E-11},{"$f":"D04b!Dose_U","v":4.1163392751782951E-9},"D04b"]
["Contaminate Tuber","Adult Female",{"$f":"D04Soil!Dose_C","v":1.4856479999999997E-8},{"$f":"D04Soil!Dose_L","v":1.4364E-8},{"$f":"D04Soil!Dose_U","v":1.1851765714285713E-7},"D04Soil"]
["Water consumption","Adult Male",{"$f":"'D07'!Dose_C","v":3.3428571428571429E-11},{"$f":"'D07'!Dose_L","v":2.4000000000000003E-12},{"$f":"'D07'!Dose_U","v":5.1428571428571437E-10},"D07"]
["Fish consumption","Adult Male",{"$f":"D09a!Dose_C","v":3.3428571428571433E-9},{"$f":"D09a!Dose_L","v":3.4285714285714291E-10},{"$f":"D09a!Dose_U","v":4.2857142857142865E-8},"D09a"]
["Fish consumption","Subsistence Populations",{"$f":"D09b!Dose_C","v":2.7077142857142862E-8},{"$f":"D09b!Dose_L","v":2.7771428571428575E-9},{"$f":"D09b!Dose_U","v":3.471428571428572E-7},"D09b"]

{"sheet":"E04","index":35,"n_rows":25,"n_cols":6,"rows_kept":25,"cut":false,"hidden":false,"merged":[[0,0,0,5],[1,2,1,4],[2,0,3,0],[2,1,3,1],[2,2,2,4],[2,5,3,5]]}
["Worksheet E03: Summary of Hazard Quotients (Toxicity) for the General Public"]
["Application Rate:",{"$f":"'A01'!ApRt_C","v":3.0000000000000001E-6}," lb a.e./acre",null,null,"E03aV6"]
["Scenario","Receptor","Hazard Quotients",null,null,"Toxicity Value"]
[null,null,"Central","Lower","Upper"]
["Accidental Acute Exposures (dose in mg/kg/event)"]
["Direct Spray of Child, whole body","Child","No exposure assessment"]
["Direct Spray of Woman, feet and lower legs","Adult Female","No exposure assessment"]
["Water consumption (spill)","Child","No exposure assessment"]
["Fish consumption (spill)","Adult Male","No exposure assessment"]
["Fish consumption (spill)","Subsistence Populations","No exposure assessment"]
["Non-Accidental Acute Exposures (dose in mg/kg/event)"]
["Vegetation Contact, shorts and T-shirt","Adult Female","No exposure assessment"]
["Contaminated Fruit","Adult Female","No exposure assessment"]
["Contaminated Vegetation","Adult Female","No exposure assessment"]
["Swimming, one hour","Adult Female","No exposure assessment"]
["Water consumption","Child","No exposure assessment"]
["Fish consumption","Adult Male","No exposure assessment"]
["Fish consumption","Subsistence Populations","No exposure assessment"]
["Chronic/Longer Term Exposures (dose in mg/kg/day)"]
["Contaminated Fruit","Adult Female",{"$f":"D04a!$C$19/$F$20","v":3.6589682446029292E-5},{"$f":"D04a!$C$20/$F$20","v":1.6726711975327682E-5},{"$f":"D04a!$C$21/$F$20","v":5.8058118575077093E-4},{"$f":"'B02'!$E$5","v":9.7999999999999993E-7}]
["Contaminated Vegetation","Adult Female",{"$f":"D04b!$C$19/$F$21","v":5.0404154389938299E-4},{"$f":"D04b!$C$20/$F$21","v":3.5002884993012712E-5},{"$f":"D04b!$C$21/$F$21","v":4.2003461991615256E-3},{"$f":"'B02'!$E$5","v":9.7999999999999993E-7}]
["Contaminated Tuber","Adult Female",{"$f":"D04Soil!Dose_C/F22","v":1.5159673469387753E-2},{"$f":"D04Soil!Dose_L/F22","v":1.4657142857142858E-2},{"$f":"D04Soil!Dose_U/F22","v":0.12093638483965014},{"$f":"'B02'!$E$5","v":9.7999999999999993E-7}]
["Water consumption","Adult Male",{"$f":"'D07'!$C$17/$F$23","v":3.4110787172011666E-5},{"$f":"'D07'!$C$18/$F$23","v":2.4489795918367351E-6},{"$f":"'D07'!$C$19/$F$23","v":5.2478134110787186E-4},{"$f":"'B02'!$E$5","v":9.7999999999999993E-7}]
["Fish consumption","Adult Male",{"$f":"D09a!$C$31/$F$24","v":3.4110787172011671E-3},{"$f":"D09a!$C$32/$F$24","v":3.4985422740524787E-4},{"$f":"D09a!$C$33/$F$24","v":4.3731778425655989E-2},{"$f":"'B02'!$E$5","v":9.7999999999999993E-7}]
["Fish consumption","Subsistence Populations",{"$f":"D09b!$C$31/$F$25","v":2.7629737609329453E-2},{"$f":"D09b!$C$32/$F$25","v":2.8338192419825078E-3},{"$f":"D09b!$C$33/$F$25","v":0.35422740524781349},{"$f":"'B02'!$E$5","v":9.7999999999999993E-7}]

{"sheet":"References","index":36,"n_rows":41,"n_cols":2,"rows_kept":41,"cut":false,"hidden":false,"merged":[[0,0,0,1]]}
["References cited in workbook"]
["Citation","Full Reference"]
["Boxenbaum and D’Souza 1990","Boxenbaum J; D'Souza R.  1990.  Interspecies pharmacokinetic scaling, biological design and neoteny.  Adv. Drug Res.  19: 139-195."]
["Budavari  1989","Budavari S. (Ed).  1989.  The Merck Index: An Encyclopedia of Chemicals, Drugs,and Biologicals, 11th ed.  Merck & Co., Inc., Rahway, New Jersey."]
["Burnmaster 1998","Burnmaster DE.  1998.  Lognormal distribution for total water intake and tap water intake by pregnant and lactating women in the United States.  Risk Analysis.  18(5): 215-219"]
["Default","These are plausible default values that are typically used in SERA risk assessments."]
["Dunning 1993","Dunning JB.  1993.  CRC Handbook of Avian Body Masses.  CRC Press, Boca Raton FL, 371 pp."]
["Durkin et al. 1995","Durkin PR; Rubin L; Withey J; Meylan W.  1995.  Methods of assessing dermal absorption with emphasis on uptake from contaminated vegetation.  Toxicol. Indust. Health.  11(1): 63-79."]
["Fletcher et al. 1994","Fletcher JS; Nellessen JE; Pfleeger TG. 1994. Literature review and evaluation of the EPA food-chain (Kenega) nomogram, an instrument for estimating pesticide residues on plants. Environ.  Toxicol. Chem. 13(9):1383-1391."]
["Harris and Solomon 1992","Harris SA; Solomon KR.  1992.  Human exposure to 2,4-D following controlled activities on recently sprayed turf.  J. Environ. Sci. Health.  B27(1): 9-22."]
["Hoerger and Kenaga 1972","Hoerger F; Kenaga EE.  1972.  Pesticide residues on plants: Correlation of representative data as a basis for estimation of their magnitude in the environment.  In: Environmental Quality and Safety, Volume I:  Global Aspects of Toxicology and Technology as Applied to the Environment.  F. Coulston and F. Kerte (eds.).  Academic Press, New York, NY.  pp. 9-28."]
["Humphery and Dykes 2008","Humphrey JAC; Dykes ES.  2008.  Thermal energy conduction in a honey bee comb due to cell-heating bees.  J Theoretical Biology.  250 (1): 194-208."]
["ICRP 1975","ICRP (International Commission on Radiologic Protection).  1975. Report of the Task Group on Reference Man.  Recommendations of the International Commission on Radiological Protection (ICRP) Publ. No. 23.   Pergamon Press, New York, NY."]
["Knisel et al. 1992","Knisel WG; Davis FM; Leonard RA.  1992.  GLEAMS Version 2.0 User Manual. U.S. Department of Agriculture, Agricultural Research Service, Southeast Watershed Research Laboratory, Tifton, GA.  202pp"]
["Manugistics 1995","Manugistics.  1995.  Statgraphics Plus for Windows. Version 3.  Available from Manugistics, Inc.  Rockville, Maryland."]
["Mason and Johnson 1987","Mason RW; Johnson BL.  1987.  Ergonomic factors in chemical hazard control.  In: Handbook of Human Factors.  Salveny, G; ed.  John Wiley and Sons, New York, NY.  pp. 772-741."]
["Mendenhall and Scheaffer 1973","Mendenhall W; Scheaffer RF.  1973.  Mathematical Statistics with Applications.  Duxbury Press, North Scituate, Massachusetts. 461 pp. plus appendices."]
["N/A","Not applicable"]
["Nagy 2005","Nagy KA.  2005.  Field metabolic rate and body size.  Journal of Experimental Biology.  208: 1621-1625."]
["Ratnapalan et al. 2003","Ratnapalan S; Potylitsina Y; Tan LH; Roifman M; Koren G.  2003.  Measuring a toddler's mouthful: toxicologic considerations.  J Pediatr.  142(6):729-30."]
["Reichle et al. 1973","Reichle DE, Goldstein RA; Van Hook RI; Dodson DJ.  1973.  Analysis of Insect Consumption in a Forest Canopy.  Ecology.  54: 1076-1084."]
["Reid 2006"," Reid FA. 2006.  A Field Guide to Mammals of North America North of Mexico.  Fourth Edition.  The Peterson Field Guide Series.  Houghton Mifflin Company, Boston MA.  570 pp."]
["Ruffle et al. 1994","Ruffle B; Burmaster DE; Anderson PD; Gordon HD.  1994.  Lognormal distributions for fish consumption by the general U.S. population.  Risk Analy.  14(4): 395-404."]
["SERA 1997","SERA (Syracuse Environmental Research Associates, Inc.).  1997. Reevaluation of Methods for Assessing Worker Exposure to Pesticides, SERA TR 96-21-08-01, draft dated December 31, 1997.  Prepared under USDA/FS Contract 53-3187-5-12.  Syracuse Environmental Research Associates, Inc., Fayetteville, NY."]
["SERA 2005","SERA (Syracuse Environmental Research Associates, Inc.).  2005. Hexazinone - Human Health and Ecological Risk Assessment– Final Report, SERA SERA TR 05-43-20-03d, Final Report dated October 25, 2005.  Available at: http://www.fs.fed.us/foresthealth/pesticide/risk.shtml."]
["SERA 2007","SERA (Syracuse Environmental Research Associates, Inc.).  2007. Preparation of Environmental Documentation and Risk Assessments, SERA MD 2007-01a, draft dated July 2001.  Syracuse Environmental Research Associates, Inc., Fayetteville, NY.  Available at www.sera-inc.com."]
["SERA 2010","SERA (Syracuse Environmental Research Associates, Inc.).  2010. Strychnine Human Health and Ecological Risk Assessment, SERA TR-052-17-02a, draft dated February 22, 2010.  Syracuse Environmental Research Associates, Inc., Manlius, NY.  Available at www.sera-inc.com."]
["Sibley 2000","Sibley DA.  2000.  The Sibley Guide to Birds.  National Audubon Society, Chanticleer Press Edition.  Alfred A. Knopf Inc., New York.  545 pp."]
["Teske et al. 2001","Teske ME; Bird SL; Esterly DM; Ray SL; Perry SG.  2001.  A User’s Guide for AgDRIFT 2.0: A Tiered Approach for the Assesment of Spray Drift.  Continuum Dynamics, Inc. Public Use Version.  C.D.I. Report No. 01-01.  Available, with executable model at: http://www.agdrift.com"]
["U.S. EPA/OPP 1999","U.S. EPA/OPP ((U.S. Environmental Protection Agency/Office of Pesticide Programs).  1999.  ECOFRAM:  Terrestrial ECOFRAM Terrestrial Draft Report.  Ecological Committee on FIFRA Risk Assessment Methods(ECOFRAM).  Report dated May 10, 1999.  Available at:  http://www.epa.gov/oppefed1/ ecorisk/terrreport.pdf."]
["U.S. EPA/ORD 1985","U.S. EPA/ORD (U.S. Environmental Protection Agency/Office of Research and Development).  1985. Development of Statistical Distributions or Ranges of Standard Factors Used in Exposure Assessments,  Report prepared by GCA Corp., Chapel Hill.  Available from NTIS: PB85-242667."]
["U.S. EPA/ORD 1992","U.S. EPA/ORD (U.S. Environmental Protection Agency/Office of Research and Development).  1992.  Dermal Exposure Assessment: Principles and Applications.  EPA/600/8-91/011B.  Interim Report.  Exposure Assessment Group, Office of Health and Environmental Assessment, Washington, DC."]
["U.S. EPA/ORD 1993","U.S. EPA/ORD (U.S. Environmental Protection Agency/Office of Research and Development).  1993.  Wildlife Exposure Factors Handbook.  Volumes 1 and 2.  EPA/600/R-93/187a,b.  Pagination not continuous.  Available NTIS: PB94-174778 and PB94-174779."]
["U.S. EPA/ORD 1996","U.S. EPA (U.S. Environmental Protection Agency/Office of Research and Development).  1996.  Exposure Factors Handbook. National Center for Environmental Assessment, U.S. EPA, Washington, DC.  EPA/600/P-95/002Ba-c.  Avail. NTIS: PB97-117683, 97-117691, PB97-117709."]
["U.S. EPA/ORD 1997","U.S. EPA (U.S. Environmental Protection Agency/Office of Research and Development).  1996.  Exposure Factors Handbook. National Center for Environmental Assessment, U.S. EPA, Washington, DC.  EPA/600/P-95/002Fa.  Available at: http://rais.ornl.gov/homepage/EFH_Final_1997_EPA600P95002Fa.pdf"]
["USDA 1989a","USDA (U.S. Department of Agriculture/Forest Service).  1989a.  Final Environmental Impact Statement: Vegetation Management in the Coastal Plain/Piedmont, Management Bulletin R8-MB-23, dated January, 1989.  1213 pp."]
["USDA 1989b","USDA (U.S. Department of Agriculture/Forest Service).  1989b.  Draft Environmental Impact Statement: Vegetation Management in the Ozark/Ouachita Mountains, Management Bulletin R8-MB-23, dated June, 1989.  499 pp."]
["USDA 1989c","USDA (U.S. Department of Agriculture/Forest Service).  1989c.  Final Environmental Impact Statement: Vegetation Management in the Appalachian Mountains, Management Bulletin R8-MB-38, dated July, 1989. 1104 pp."]
["Waldbauer 1968","Waldbauer GP.  1968.  The consumption and utilization of food by insects.  Advan Insect Physiol.  5: 229-288"]
["Winston 1987","Winston ML.  1987.  The Biology of the Honey Bee.  Harvard University Press, Cambridge, MA.  ISBN 0-674-07409-2  280 pp."]
["Wolfram Research 1997","Wolfram Research.  1997. Mathematica Version 3.0.1.  Available from Wolfram Research, Inc.  Champaign, IL."]

{"sheet":"PlntRunoV5","index":37,"n_rows":31,"n_cols":5,"rows_kept":31,"cut":false,"hidden":true,"merged":[[15,0,18,0],[19,0,22,0],[24,0,24,1],[0,0,0,4],[2,1,2,3],[3,1,3,3],[4,1,4,4],[8,1,8,3],[10,0,13,0]]}
["Summary of Exposure Assessment and Risk Characterization for Terrestrial Plants from Runoff"]
["Short Title","Runoff to terrestrial plants"]
["Receptor","Terrestrial vegetation"]
["Duration","Acute"]
["User-Specified Gleams-Driver File","None"]
["Parameter/Assumption","Code / Range","Value","Units","Reference"]
["Worksheet Application Rate","ApRtWB",0.2,"lb/acre","Prog!ApRt"]
["Offsite Application Rates Inputs"]
["Run ID:","See Risk Assessment"]
["Application Rate Used in Run:","ApRtRun",1,"lb/acre"]
["Functional Off-site Application Rate","ApRtOffsite"]
[null,"Central",2.7E-2,"lb/acre"]
[null,"Lower",9.4999999999999998E-3]
[null,"Upper",5.7000000000000002E-2]
["Calculated Values"]
["Normalized Off-site Functional Application Rate ","NormApRtOffsite","ApRtOffsite / ApRtRun"]
[null,"Central",{"$f":"C12/C$10","v":2.7E-2},"Unitless","Eq"]
[null,"Lower",{"$f":"C13/C$10","v":9.4999999999999998E-3},null,"Eq"]
[null,"Upper",{"$f":"C14/C$10","v":5.7000000000000002E-2},null,"Eq"]
["Off-site Application Rate at Workbook Application Rate","ApRtWB","ApRtWB x NormApRtOffsite"]
[null,"Central",{"$f":"C17*C$7","v":5.4000000000000003E-3},"lb/acre","Eq"]
[null,"Lower",{"$f":"C18*C$7","v":1.9E-3},null,"Eq"]
[null,"Upper",{"$f":"C19*C$7","v":1.14E-2},null,"Eq"]
["Toxicity Values  (seedling emergence) in units of lbs/acre"]
[null,null,"Sensitive","Tolerant"]
[null,"Endpoint"]
[null,null,3.7000000000000002E-3,0.37]
["Hazard Quotients"]
[null,"Central",{"$f":"IF(ISNUMBER(C$27), $C21/C$27, \"N/A\")","v":1.4594594594594594},1.4594594594594595E-2]
[null,"Lower",0.51351351351351349,5.1351351351351356E-3]
[null,"Upper",3.0810810810810811,3.0810810810810812E-2]